Workbook

Sheet Summary
A1: The University of Texas Health Science Center at Houston
A2: Clinical Trials Detailed Budget Worksheet
A3: THIS FILE IS FOR INTERNAL USE ONLY. CONTACT CRF@uth.tmc.edu WITH ANY COMMENTS OR QUESTIONS
A4: Version 08/19/2026
A6: Date: | G6: Coverage Analysis Complete By: | J6: Complexity | N6: Study Information
A7: Budget Complete By: | G7: Email | J7: Est. Project Period (include all yrs): | K7: MM/DD/YYYY - MM/DD/YYYY | N7: • Personnel are automatically populated from the Summary tab, across all sheets. Please add additional personnel on the Summary tab. • Complete all Yellow cells Step 1: Complete the Project Information Step 2: Complete the salary amount for the personnel that will work on the project. If multiple staff are on the project, use the highest salary among the staff. Step 3: The Fringe Rate is a tiered calculation.
A8: PROJECT INFORMATION: Enter the information below.
A9: Project Title: | B9: title
A10: Principal Investigator: | C10: PI | G10: Department: | I10: SPA
A11: Sponsor: | C11: Spon | G11: CRO: | I11: CRO
A12: CPHS Study Number: | C12: IRB num | G12: Primary Coordinator Name: | I12: NAME
A13: Pre-screen (Est # of Charts) | D13: 1 | G13: IDE #: | I13: IDE num | N13: Screening and Enrollment
A14: Screen Fail (Est. # of Participants) | D14: 1 | G14: ClinicalTrials.gov # / NCT #: | I14: NCT number | N14: Example: We will need to review about 250 charts (pre-screen) to identify and consent 25 (screen) that meet enrollment criteria to enroll 10 (target enrollment) participants Target Enrollment: Enter the number of participants to be enrolled/completed at UTHealth Houston. Screen (Est. # of participants): enter the number of participants expected to consent and complete the screening visit(s). (Include estimated screen fails.) Pre-Screen (Est # of charts/records): Enter the estimated number of charts or other records to be reviewed to identify participants for potential study enrollment.
A15: TARGET ENROLLMENT: | D15: 1 | G15: IDC RATE: | I15: 0.3 | J15: Non-negotiable for all industry sponsors.
A16: PERSONNEL COSTS: These are required for the UTH internal budget, but are not always included in the sponsor's budget; personnel costs are included in effort-based costs below; the PI's effort must be at least 2%.
A17: SALARIES: Enter salary (REG + LONG + AUG) for the PI and others. Or, for staff, choose a salary from the range for that position.
A18: Position | C18: Name | E18: Salary (Inc Comp for all) | G18: % Effort | H18: Request | J18: Fringe Rate | K18: Fringe $ | L18: Total | N18: Personnel • Effort is a calculation based on the information provided on the "Effort" tab. This field is not editable and will populate from providing the information on the effort tab. • The costs section will calculate after the "Effort" tab is complete. • PI / PI Oversight: PI effort (per effort tab × hourly rate) primarily covers study start-up and visits, and includes oversight of all study activities: ensuring informed consent, IRB approval, and participant safety; strict adherence to the protocol with complete, audit-ready records; supervision, training, and credentialing of qualified staff; proper drug handling per protocol; accurate and reliable data collection; and timely reporting to sponsors and regulatory bodies with clear team communication. • Coordinator/ Coordinator Admin: Maintain and organize subject files; update PI and/or sponsor on enrollment progress; communicate with collaborating researchers and the PI (e.g., Co-Is, Radiology, MHH, CRU); conduct pre-screening by reviewing EMR and clinic schedules to identify eligible Participants; perform study-related phone calls with subjects; and prepare/submit protocol amendments to the IRB. • Industry Studies: Prepare and maintain the regulatory binder (including IRB approvals, monitoring reports, IND reports, etc.); maintain the delegation of authority log; and respond to sponsor database queries.
A19: PI | C19: =C10 -> PI | G19: =$D$15*Effort!AL20 + VALUE(Effort!W60) -> 0.001442307692 | H19: =SUM(E19*G19) -> 0 | J19: =IF($E19<40000,x!C3, IF(AND($E19>39999,$E19<70000), x!$C$4, IF(AND($E19>69999,$E19<150000), x!$C$5, IF(AND($E19>149999,$E19<230000), x!$C$6, IF(AND($E19>229999,$E19<500000), x!$C$7, IF($E19>499999, x!$C$11))))))*1 -> 0.55 | K19: =SUM(H19*J19) -> 0 | L19: =SUM(H19+K19) -> 0
A20: PI Oversight | C20: =C10 -> PI | E20: =E19 -> 0 | G20: 0.02 | H20: 0 | J20: =IF($E20<40000,x!C4, IF(AND($E20>39999,$E20<70000), x!$C$4, IF(AND($E20>69999,$E20<150000), x!$C$5, IF(AND($E20>149999,$E20<230000), x!$C$6, IF(AND($E20>229999,$E20<500000), x!$C$7, IF($E20>499999, x!$C$11))))))*1 -> 0.46 | K20: 0 | L20: 0
A21: Coordinator | C21: =I12 -> NAME | G21: =$D$15*Effort!AL21 + VALUE(Effort!W61) -> 0.001442307692 | H21: 0 | J21: =IF($E21<40000,x!C5, IF(AND($E21>39999,$E21<70000), x!$C$4, IF(AND($E21>69999,$E21<150000), x!$C$5, IF(AND($E21>149999,$E21<230000), x!$C$6, IF(AND($E21>229999,$E21<500000), x!$C$7, IF($E21>499999, x!$C$11))))))*1 -> 0.35 | K21: 0 | L21: 0
A22: Coordinator Admin | C22: =I12 -> NAME | E22: =E21 -> 0 | G22: =MIN(ROUNDUP(D15/10,0)*0.05,1) -> 0.05 | H22: 0 | J22: =IF($E22<40000,x!C6, IF(AND($E22>39999,$E22<70000), x!$C$4, IF(AND($E22>69999,$E22<150000), x!$C$5, IF(AND($E22>149999,$E22<230000), x!$C$6, IF(AND($E22>229999,$E22<500000), x!$C$7, IF($E22>499999, x!$C$11))))))*1 -> 0.29 | K22: 0 | L22: 0
A23: Financial Management | G23: =$D$15*Effort!AL23 + VALUE(Effort!W63) -> 0 | H23: 0 | J23: =IF($E23<40000,x!C7, IF(AND($E23>39999,$E23<70000), x!$C$4, IF(AND($E23>69999,$E23<150000), x!$C$5, IF(AND($E23>149999,$E23<230000), x!$C$6, IF(AND($E23>229999,$E23<500000), x!$C$7, IF($E23>499999, x!$C$11))))))*1 -> 0.25 | K23: 0 | L23: 0
G24: =$D$15*Effort!AL24 + VALUE(Effort!W64) -> 0 | H24: 0 | J24: =IF($E24<40000,x!C8, IF(AND($E24>39999,$E24<70000), x!$C$4, IF(AND($E24>69999,$E24<150000), x!$C$5, IF(AND($E24>149999,$E24<230000), x!$C$6, IF(AND($E24>229999,$E24<500000), x!$C$7, IF($E24>499999, x!$C$11))))))*1 -> 0.23 | K24: 0 | L24: 0
G25: =$D$15*Effort!AL25 + VALUE(Effort!W65) -> 0 | H25: 0 | J25: =IF($E25<40000,x!C9, IF(AND($E25>39999,$E25<70000), x!$C$4, IF(AND($E25>69999,$E25<150000), x!$C$5, IF(AND($E25>149999,$E25<230000), x!$C$6, IF(AND($E25>229999,$E25<500000), x!$C$7, IF($E25>499999, x!$C$11))))))*1 -> 0.2 | K25: 0 | L25: 0
G26: =$D$15*Effort!AL26 + VALUE(Effort!W66) -> 0 | H26: 0 | J26: =IF($E26<40000,x!C10, IF(AND($E26>39999,$E26<70000), x!$C$4, IF(AND($E26>69999,$E26<150000), x!$C$5, IF(AND($E26>149999,$E26<230000), x!$C$6, IF(AND($E26>229999,$E26<500000), x!$C$7, IF($E26>499999, x!$C$11))))))*1 -> 0.16 | K26: 0 | L26: 0
G27: =$D$15*Effort!AL27 + VALUE(Effort!W67) -> 0 | H27: 0 | J27: =IF($E27<40000,x!C11, IF(AND($E27>39999,$E27<70000), x!$C$4, IF(AND($E27>69999,$E27<150000), x!$C$5, IF(AND($E27>149999,$E27<230000), x!$C$6, IF(AND($E27>229999,$E27<500000), x!$C$7, IF($E27>499999, x!$C$11))))))*1 -> 0.13 | K27: 0 | L27: 0
A28: Start of Study/Project Personnel Costs (Inc Startup Effort) | H28: =SUM(H19:H27) -> 0 | K28: =SUM(K19:K27) -> 0 | L28: =SUM(L19:L27) -> 0 | N28: Clinical Study Costs Summary Notes: • No data entry is required. • Subtotal Startup pulls from "Startup & Inv." tab cell D18 • Subtotal Invoiceable pulls from "Startup & Inv." tab cell D44 • Total Direct Cost is a sum of Startup Costs and Invoiceable Costs • Subtotal Effort Based Per Patient Costs is a sum of (estimated #hrs x hourly salary rates) • Subtotal Expensed Based Per Patient Costs is a sum of totals on row 38 of the "Cost-Expenses" tab. • Total Direct Per Patient Costs is (Effort+Expense Based per patient costs)*(number of expected Participants) • Total Indirect Cost is (L30+L34)* Indirect Cost Rate • Total Direct Costs for R&A is a sum of Startup Costs and Total Direct Per Patient Costs. This total should be used on your R&A form. • Total Indirect Costs for R&A is Total Direct Costs for R&A * Indirect Cost Rate • Total Costs for R&A is a sum of Total Direct Costs for R&A and Total Indirect Costs for R&A • Total Anticipated Study Costs is a sum of (L30+L33+L34) Step 4: • Enter the amount funded by the sponsor. • Study Revenue will be a positive number and show as green; Study Deficit will be a negative number and show as red
A29: Clinical Study Costs Summary
A31: Subtotal Startup Costs (Excluding: Start up Effort+ IDC) | L31: ='Fees-Invoiceables'!D19 -> 
A32: Subtotal Invoiceable Costs (Excluding IDC) not included in total | G32: ='Fees-Invoiceables'!D44 -> 0
A33: Subtotal Effort Costs for 1 patient (excluding IDC) | J33: =L28/D15 -> 0
A34: Subtotal Expense Costs for 1 patient (excluding IDC) | J34: =SUM('Visit Cost'!C77:CD77) -> 0
A35: Study/Project Direct Expenses (excluding IDC and personnel expenses) | L35: =J34*D15 -> 0
A36: Sub Total Direct Costs Personnel + Expenses+ Startup | L36: =L35+L31+L28 -> 
A37: Total Indirect Costs | L37: =L36*I15 -> 
A38: START Proposal: Total Direct Costs (Enter into START) | H38: =H40/(1+I15) -> 0
A39: START Proposal: Total Indirect Costs (auto populates in START) | H39: =H40-H38 -> 0
A40: START Proposal: Total Costs (auto populates in START) | H40: =G42 -> 0
A41: Total Anticipated Internal Study Costs | L41: =SUM(L36:L37) -> 
A42: Total Anticipated Revenue | N42: • Note for Principal Investigator: The final copy of this budget/CA is attached to the proposal record in START. By signing the START proposal record you are certifying that the coverage analysis internal budget (CAIB) tool attached accurately reflects the billing determinations and anticipated costs to conduct the study. Per institutional policy (HOOP 214) The PI is responsible for assigning staff to ensure the charges are billed in accordance with the coverage analysis. • Please note, salary recharge is based on the information provided in this table. • SPA will combine SC per visit and SC administrative effort when calculating salary expenses. o Example: Start up invoicables and Close out invoicables are certain to be invoiced/paid. o Some contracts are set up to include many items that are certain to be invoiced/paid as invoicables. Each contract is unique.
A43: Study Balance or Deficit | G43: =G42-L41 -> 
A44: COMMENTS:
N51: • Total anticipated revenue L42 should consist of all costs paid for by the Sponsor. These include, all fees, pass through costs and reimbursements. In addition, it should also include per patient revenue. (Sponsor/Grant Revenue + Expected Billable Clinical Revenue =TAR) • STUDY TEAM you should leave relevant notes in the “Comments” section to help expedite Proposal record budget review.
N53: COMPLETING COVERAGE ANALYSIS TAB Adding Rows and Columns: Using the Macro keys at the top will add rows and columns to the end of each section. Entering Protocol Activities: You can find activities utilizing the drop down menus or by directly typing into the Procedures/Activities Column A location must be selected for every item listed. A CPT code must be listed for every item that is not identified as a "non-billable" A justification must be provided for each item marked as Standard of Care (SOC) Selecting Coverage Type: A non-billable item is one that will not appear in the GE Centricity billing system. NB-Cost for Research is a non-billable item that will still be invoiced on a per-patient basis to the research account (e.g. Department set room charge) RES identifies a billable procedure that will appear in the GE Centricity billing system that needs to be charged to the research account. SOC identifies a standard of care procedure that will be billed to the patient/patient's insurance. COMPLETING EFFORT TAB Adding Personnel: Personnel are automatically populated from the Summary tab. Please add additional personnel on the Summary tab. Inputting Time and Effort: In the upper table input the total estimated time that the individual is expected to devote for a single patient at each visit. The lower table automatically calculates the hourly rate for each individual based on the information from the Summary Tab. COMPLETING COST-EXPENSES TAB Update Table: The table does not automatically update. If changes are made to the coverage analysis tab, then you will need to click on the Update Table Macro. Adding Pricing: For each item marked as RES or NB-Cost for Research, the cell will unlock and turn yellow. Input the unit price for each. Remember that some procedures are split into a technical fee from MHHS and professional fee from UTP. Each column will automatically subtotal and calculate the IDC for the entire visit. COMPLETING START UP AND INVOICEABLES TAB Startup Time and Effort: Scroll down to Rows 54-60. The personnel will automatically pull from the summary tab Add additional personnel on the Summary tab first. For each startup activity listed, provide the total amount of time each individual is expected to spend on that activity in the available yellow box. To the right, total effort will be calculated based on a standard 40 hour work week during a single calendar year. Other Startup Costs: Scroll up to the top of the tab. For each other additional startup costs (not effort based) provide a brief description in the Start Up Costs column. For each item provide the price prior to IDC. (do not put what you are charging the sponsor, but the actual cost that will hit the account before IDC). For IRB costs select the appropriate review cost and delete the one that is not needed. All IDC costs will automatically calculate. Total Startups and IDC will automatically calculate at the bottom of the table. Invoiceable Costs: Provide a brief description of the invoiceable in the Invoiceable Procedure column. Provide the price that will be paid from the research account in the Unit Price column (do not put what you are charging the sponsor, but the actual cost of the item) Under Quantity put the maximum number you are allowed to invoice for per the sponsor, if this is unlimited you can estimate how many you may see during the life of the trial. COMPLETING QQBR TAB YOU ONLY NEED TO COMPLETE THE SECTIONS THAT APPLY TO YOUR STUDY For device studies answer the questions in the top section. For drug/biologic/behavioral studies answer the questions in the bottom section. Once all questions have been answered have the PI sign the certification at the bottom of the page.
A57: PI Signature: | G57: Date:
M59: For Industry initiated studies you will enter I35 under M&O in START (IDC and Grand total will auto populate/calculate in START.) See CT guidance document for more details

Sheet x (hidden)
A1: FY27 Benefit Tiers | E1: FY27 Benefit Tiers - Students
A2: min | B2: max | C2: rate | E2: min | F2: max | G2: rate
A3: 0 | B3: 39999 | C3: 0.55 | E3: 0 | F3: 4999 | G3: 0.09
A4: 40000 | B4: 69999 | C4: 0.46 | E4: 5000 | F4: 14999 | G4: 0.51
A5: 70000 | B5: 149999 | C5: 0.35 | E5: 15000 | F5: 29999 | G5: 0.53
A6: 150000 | B6: 199999 | C6: 0.29 | E6: 30000 | F6: + | G6: 0.34
A7: 200000 | B7: 299999 | C7: 0.25
A8: 300000 | B8: 349999 | C8: 0.23
A9: 350000 | B9: 499999 | C9: 0.2
A10: 500000 | B10: 599999 | C10: 0.16
A11: 600000 | B11: + | C11: 0.13
A17: Project Staff
A18: PI
A19: Staff
A20: Study Coordinator
A23: Administrative fee
A24: Low intensity (0-4 hours) | B24: 300
A25: Moderate intensity (5-9 hours) | B25: 675
A26: High intensity (10+ hours) | B26: 1100
A28: Protocol submission fee
A29: Low intensity (0-8 hours) | B29: 650
A30: Moderate intensity (8-20 hours) | B30: 1300
A31: High intensity (20+ hours) | B31: 2600
A33: Research vs. SOC
A34: Research
A35: SOC
A37: Study Type
A38: Device
A39: Drug
A40: HUD
A42: YES/NO
A43: Yes
A44: No

Sheet Coverage Analysis
A2: =Summary!A9 -> Project Title: | C2: =Summary!B9 -> title
A3: =Summary!A10 -> Principal Investigator: | C3: =Summary!C10 -> PI
A4: =Summary!A11 -> Sponsor: | C4: =Summary!C11 -> Spon
A5: =Summary!A12 -> CPHS Study Number: | C5: =Summary!C12 -> IRB num
A6: =Summary!A13 -> Pre-screen (Est # of Charts) | C6: =Summary!D13 -> 1 | AL6: Version Date: | AM6: =LastSavedTimeStamp() -> 2026-08-19T10:45:01
A8: Category | B8: Procedures/ Activities | C8: Location | D8: CPT Code | E8: CDM Code | F8: V1 | G8: V2 | H8: V3 | I8: V4 | J8: V5 | K8: V6 | L8: V7 | M8: V8 | N8: V9 | O8: V10 | P8: V11 | Q8: V12 | R8: V13 | S8: V14 | T8: V15 | U8: V16 | V8: V17 | W8: V18 | X8: V19 | Y8: V20 | Z8: V21 | AA8: V22 | AB8: V23 | AC8: V24 | AD8: V25 | AE8: V26 | AF8: V27 | AG8: V28 | AH8: V29 | AI8: V30 | AJ8: V31 | AK8: V32 | AL8: V33 | AM8: Justifications
A67: NOT LISTED IN PROTOCOL SCHEDULE
B69: CRF Data Entry | D69: =IF(ISNA(VLOOKUP(B69,'CA Data-Validation'!$A$121:$B$489,2,FALSE)),"",VLOOKUP(B69,'CA Data-Validation'!$A$121:$B$489,2,FALSE)) -> 
B70: Chart set up | D70: =IF(ISNA(VLOOKUP(B70,'CA Data-Validation'!$A$121:$B$489,2,FALSE)),"",VLOOKUP(B70,'CA Data-Validation'!$A$121:$B$489,2,FALSE)) -> 
B71: Schedule next visit | D71: =IF(ISNA(VLOOKUP(B71,'CA Data-Validation'!$A$121:$B$489,2,FALSE)),"",VLOOKUP(B71,'CA Data-Validation'!$A$121:$B$489,2,FALSE)) -> 
B72: Describe Study drug | D72: =IF(ISNA(VLOOKUP(B72,'CA Data-Validation'!$A$121:$B$489,2,FALSE)),"",VLOOKUP(B72,'CA Data-Validation'!$A$121:$B$489,2,FALSE)) -> 

Sheet CA Data-Validation (hidden)
A1: Patient Payment | B1: Visits | C1: Labs | D1: Anesthesiology | E1: XRay Imaging | F1: Tissue | G1: Ultrasound | H1: CT | I1: MRI MRA | J1: Nuclear Radiology | K1: EKG ECHO | L1: Pulmonary | M1: Pharmacy | N1: Parking | O1: Cardiac | P1: OR | Q1: Biopsy | R1: Fluoroscopy | S1: PET | T1: Neurophysiology | U1: Other
A2: Patient Payment | B2: Clinic Visit_Est. Patient Level 1 | C2: Albumin Serum | D2: Anes Endotracheal Tube | E2: Abdomen Acute Series Complete | F2: Research Handling Fee- blocks | G2: US Abdomen Complete | H2: Creatinine Blood Non OPID-*only use with Contrast for CT | I2: Creatinine Blood Non OPID-*only use with Contrast for MRI | J2: Bone Density DXA Axial Skelet | K2: Cable ECG 12 V Lead | L2: 6 min walk | M2: New Study Set-Up / Administrative Fee (Inpatient Study) | N2: CRU Parking | O2: Angio Coronary w/o Heart Cath | P2: Cable ECG 12 V Lead | Q2: EKG Hourly Monitor Charge | R2: Fluoro Local NDL Biopsy/ Aspiration | S2: CT Thorax W/O Contrast | T2: 13 or more Nerve Conduct | U2: Other
B3: Clinic Visit_New Patient Level 2 | C3: Alk Phosphatase | D3: Anes srvs General 1st 30 min | E3: Abdomen AP View | F3: Research Unstained Slides | G3: US Abdomen Limited | H3: OPID CT Omnipaque 300ML 10-*only use with CT and Angio Contrast | I3: IV START PAK-*only use with Contrast for MRI | J3: Bone Scan Three Phase Study | K3: ECG 12/15 Lead | L3: Alprazolam 1 MG Tab | M3: New Study Set-Up / Administrative Fee (Outpatient Study) | O3: Blood O2 Saturation only | P3: Cardiac Output Measurement | Q3: Conscious Sedation> 5 years old, first 30 min | S3: PET Brain Imaging Met Eval
B4: Clinic Visit_New Patient Level 3 | C4: Alpha -fetoprotein | D4: Anes srvs General add 15 mins | E4: Ankle 2 Views Bilateral | G4: US Brain Scan | H4: Iodixanol 320MG/ML INJ(200ML)- *only use with CT and Angio Contrast | I4: Electrode MRI ECG Quatrade-*only use with Contrast for MRI | J4: Bone Scan Tomogram Spect | K4: 12 Lead ECG CPT (Tracing & Interpretation only) | L4: Blood Gas | M4: Annual Refrig Storage Fee | O4: Cath Lab Treatment Room | P4: Cath 8F Cardiac Output | Q4: Skin biopsy + add Lesion | S4: PET CT Tumor Image Skull MIDTH
B5: Clinic Visit_ Est. Patient Level 4 | C5: ALT (SGPT) | D5: Desflurane Per case | E5: Ankle 2 Views Unilateral | G5: US Chest | H5: Injection Kit Dual Syringe-*only use with Contrast for CT | I5: Monitor Non-Invasive | J5: Bone Scan Whole Body | K5: ECG Rhythym Strip | L5: Blood O2 Saturation | M5: Annual Study Maintenance Fee | O5: DSA Analysis Coronary | P5: Drape Intraop Probe SM T TIP | Q5: Oxygen | S5: PET CT Tumor Imaging LTD area
B6: Clinic Visit_ Est. Patient Level 5 | C6: Amplified Probe(MSRA) | D6: Invasive Pressure Monitor | E6: Ankle Complete 3+V Uni | G6: US Duplex Abd/Pel/Scrot/Kid | H6: CT Abdomen w/Contrast | I6: MRI Kit-*only use with Contrast for MRI | J6: Bone Scan Whole Body | K6: Echo 2D M Mode Comp w/Color Fl | L6: Bronchoscopy w/Biopsy | M6: Miscellaneous IDS FEE 15 min | O6: DSA Analysis LV Gram | P6: Dressing Bio Patch | Q6: Biopsy Tray | S6: PET CT Tumor Imaging Whole BD
B7: Room Charge | C7: AST (SGOT) | D7: Kit Transd 3 ml 12 in 72 in TB | E7: Bone Density DXA Axial Skelet | G7: US Duplex Ext Veins Bilat | H7: CT Abdomen w/out Contrast | I7: GADOBENATE 1ML VL(7935MG/15ML)-*(contrast x 15 (qty 15= qty is equal to 1ML VL (7935MG/15ML) per 150 lb patient) only use with Contrast for MRI | J7: Bone Scan, Multiple Area | K7: Echo 2D M Mode Complete | L7: Bronchoscopy w/Bronchial Lavag | M7: Patient Randomization | O7: Injection Venous Bypass Grafts | P7: Injection IV Push 1st drug | Q7: Universal Precautions | S7: PET Myocard Imag Metabolic Eval
B8: Venipuncture | C8: Basic Metabolic Panel | D8: Oximeter P/Day | E8: Bone Survey Complete | G8: US Pelvis Complete | H8: CT Abodomen w/out - w/Contrast | I8: MRA Abdomen w/Contrast | J8: Brain Scan Spect | K8: Echo 2D M Mode Limited | L8: Bronchoscopy w/Brushing | M8: Per Dose RX Dispensing Fee | O8: Left & Right Heart Cath | P8: Kit Perc Intro 8.5 FR | Q8: Pulse Oximeter | S8: PET Myocard Imag Metabolic Eval
C9: Beta-Natriuretic Peptide (BNP) | E9: Both Knees standing anteroposterior | G9: US Retroperitoneal Limited | H9: CT Angio Abdomen | I9: MRA Abdomen w/out Contrast | J9: Cardiac Scan Gated Multi(MUGA) | K9: Echo Doppler Complete | L9: Cardiac Output Measurement | M9: Storage Of Used Study Medication | O9: Procedure Prep | P9: Minor Proc Recovery 1 st hour | Q9: Biopsy Lung perc | S9: PET Tumor Image Skull Midthigh
C10: Bicarbonate(CO2) | E10: Chest AP w/Fluoro | G10: US Scrotum & Contents | H10: CT Angio Aorta w/Fem Runoff | I10: MRA Abdoment w/out - w/Contrast | J10: Cold Pyrophosphate per dose | K10: Echo Doppler Limited | L10: D5W 500 ml Bag | M10: Study Annual Documentation Fee | O10: S&I Abdominal Aortagram | P10: Minor Proc Recovery add 30 minutes | Q10: Skin biopsy Single Lesion | S10: PET Tumor Imaging
C11: Bilirubin Direct | E11: Chest AP w/Lordotic | G11: US Transpl Kidney w/ Dop | H11: CT Angio Chest w/o - w/Contrast | I11: MRA Chest w/Contrast | J11: Lung Perfusion Scan | K11: Echo Follow-Up Congenital | L11: Diffusion Capacity (DLCO) | O11: S&I Arterial /Vent/Angio ( Pedi) | P11: Oxi Adult Sensor | Q11: Kit Bone Biopsy | S11: PET Tumor Imaging Limited area
C12: Bilirubin Total | E12: Chest 2 view AP & Lateral | G12: US Transpl Kidney w/out Dop | H12: CT Angio Extr Lower w/Contrast Uni | I12: MRA Chest w/out - w/Contrast | J12: TC-99M Sulfur Colloid Per Dose | K12: Echo Follow-Up/Limited | L12: Fentanyl 100 MCG/2 ml Vl | O12: S&I Cor/Pulm/Aort Angio | P12: Pack Line Linen | Q12: Pressure bag vital signs | S12: PET Tumor Imaging Whole Body
C13: Blood Culture | E13: Chest AP Single View | G13: US Transrectal | H13: CT Angio Extr Lower w/o - w/Bi | I13: MRA Head w/Contrast | K13: Echo w/Contrast | L13: Injection Internal Mammary | P13: Phase 2 PACU Ea Add 30 min-Rout | Q13: IV Catheter #18-24
C14: BUN | E14: Knee 1 or 2 views | G14: US Transvaginal | H14: CT Angio Extr Upper w/Contrast Bi | I14: MRA Head w/out - w/Contrast | K14: Holter Analysis | L14: Injection Pulmonary | P14: Preoperative Assessment | Q14: Conscious Sedation> 5 years old, each add 15 mins
C15: Calcium Ionized | E15: Knee 3 views | H15: CT Angio Extr Upper w/Contrast Uni | I15: MRA Head w/out Contrast | K15: Holter Placement 24 Hour | L15: Midazolam 1 MG vl (2mg/2ml) | P15: Pressure Infuse disposable | Q15: Monitors electrodes
C16: Calcium, Total | E16: Knee complete 4 views | H16: CT Angio Head w/out - w/Contrast | I16: MRA Neck w/Contrast | K16: Stress Echo | L16: NACL 0.9% 100 ML Bag | P16: Procedure Prep | Q16: Kit Bone Biopsy 11 ga
C17: CBC w/platelets no diff | E17: Pelvis 1-2 Views | H17: CT Angio Neck w/out - w/Contrast | I17: MRA Neck w/out - w/Contrast | K17: Transesophageal Echo | L17: NACL 0.9% 500 ML IV | P17: Safeset 60/SS/MAC Mon -kit | Q17: Non Invasive blood pressure monitor
C18: CBC diff, w/platelets, automated | E18: Spine Cervical 1V | H18: CT Angio Pelvis w/out - w/Contrast | I18: MRA Neck w/out Contrast | L18: Nitroglycerin 0.6 Mg Tab | P18: Tray Custom Adult Cardiac | Q18: Post Procedure recovery room + 30 mins
C19: CD4 count or T cell Absolute | E19: Spine Cervical 2-3V | H19: CT Cervical Spine w/Contrast | I19: MRA Neck w/out Contrast | L19: O2 Uptake and CO2 Output | Q19: Post Procedure recovery room first hour
C20: Chloride | H20: CT Cervical Spine w/out - w/Contrast | I20: MRA Pelvis w/ or w/out Contrast | L20: Plenty Lung Volumes Airwy Rest
C21: Cholesterol | H21: CT Cervical Spine w/out Contrast | I21: MRA Pelvis w/Contrast | L21: Prednisone 5 MG tab(20 mg)
C22: Complement AG EA Component | H22: CT Chest w/Contrast | I22: MRA Pelvis w/out Contrast | L22: Propofol 200 MG/20ml VL
C23: Comprehensive metabolic panel | H23: CT Chest w/out - w/Contrast | I23: MRI Abdomen w/Contrast | L23: Pulmonary Stress Test Complex
C24: C-Peptide | H24: CT Chest w/out Contrast | I24: MRI Abdomen w/out - w/Contrast | L24: Pulse Oximeter Multiple Determ
C25: CPK Total | H25: CT Head or Brain w/Contrast | I25: MRI Abdomen w/out Contrast | L25: Spirometry
C26: C-Reactive Protein | H26: CT Head or Brain w/out - w/Contrast | I26: MRI Brain w/Contrast | L26: Versed Per 1 MG
C27: C-Reactive Protein High Sens | H27: CT Head or Brain w/out Contrast | I27: MRI Brain w/out - w/Contrast | L27: Vital Capacity Total
C28: Creatinine | H28: CT L-Spine w/Contrast | I28: MRI Brain w/out Contrast
C29: DAT (COOMBS Direct) | H29: CT L-Spine w/out - w/Contrast | I29: MRI Cardiac Function Complete
C30: DNA Antibody Double Strand | H30: CT L-Spine w/out Contrast | I30: MRI Chest w/Contrast
C31: Electrolyte Panel | H31: CT Pelvis w/Contrast | I31: MRI Chest w/out - w/Contrast
C32: ESR (sedimentation rate) | H32: CT Pelvis w/out - w/Contrast | I32: MRI Chest w/out Contrast
C33: Estradiol | H33: CT Pelvis w/out Contrast | I33: MRI C-Spine w/Contrast
C34: F IX inhibitor and F IX C level | H34: CT T-Spine w/Contrast | I34: MRI C-Spine w/out - w/Contrast
C35: Factor VIII Assay (Test code: 26-00140) | H35: CT T-Spine w/out - w/Contrast | I35: MRI C-Spine w/out Contrast
C36: Factor VIII Inhibitor Assay: Human (Test code: 26-00310) | H36: CT T-Spine w/out Contrast | I36: MRI L-Spine w/Contrast
C37: Factor VIII Inhibitor Assay: Porcine (Test code: 26-00320) | I37: MRI L-Spine w/out - w/Contrast
C38: Factor VIII Inhibitor Screen (Test code: 26-00290) | I38: MRI L-Spine w/out Contrast
C39: Fibrin Split Product | I39: MRI Pelvis w/ Contrast
C40: Fibrinogen Activity | I40: MRI Pelvis w/out contrast
C41: FSH-Follicle Stimulating Hormone | I41: MRI Pelvis w/out-w contrast
C42: Gammaglobulin IGA,IGD,IGG,IGM | I42: MRI T-Spine w/Contrast
C43: GGTP | I43: MRI T-Spine w/out - w/Contrast
C44: Glucose Blood | I44: MRI T-Spine w/out Contrast
C45: HbA1C/glycosylated hemoglobin
C46: HCG Pregnancy Test Urine
C47: HCG Qualitative Serum
C48: Hematocrit
C49: Hemoglobin
C50: Hepatic Function Panel
C51: Hepatitis A Antibody ( HAAb)
C52: Hepatitis B Core Antibody (HBcAB)
C53: Hepatitis B surface antibody ( HBsAB)
C54: Hepatitis C antibody
C55: HIV Antibody Confirmatory
C56: HLA B 27
C57: HTLV-1
C58: HTLV-II
C59: Inorganic Phosphorus
C60: Insulin Total
C61: LDH
C62: LDH Isoenzymes
C63: Lipid Panel
C64: Luteinizing Hormone
C65: Magnesium
C66: Nicotine
C67: Phosphorus Inorganic
C68: Platelet Count
C69: Potassium-serum
C70: Protein C Functional
C71: Protein S Free
C72: Protein Total Urine
C73: Protime (PT)
C74: PTT
C75: Quantiferon
C76: Renal Function Panel
C77: Sodium
C78: Somatomedin (IGF -1) insulin growth factor
C79: Syphilis Test Qualitative
C80: T B Screening
C81: Total Protein
C82: Triglyceride
C83: TSH
C84: Uric Acid
C85: Urinalysis - Automated w Micro
C86: Urinalysis - Automated w/out Micro
C87: Urine Culture and Sensitivity Test
A89: Category
A90: Patient Payment | C90: Central Lab
A91: Visits | C91: CRU
A92: Labs | C92: MHHS | E92: Yes | F92: Research
A93: Anesthesiology | C93: UTP Clinic | E93: No | F93: NB
A94: XRay Imaging | C94: Other | F94: SOC
A95: Tissue | C95: MHHS Clinic | F95: NB- Costs for Research
A96: Ultrasound | F96: X
A97: CT
A98: MRI MRA
A99: Nuclear Radiology
A100: EKG ECHO
A101: Pulmonary
A102: Pharmacy
A103: Parking
A104: Cardiac
A105: OR
A106: Biopsy
A107: Fluoroscopy
A108: PET
A109: Neurophysiology
A110: Other
A119: Service Description/Procedures | B119: CPT | C119: CDM
A120: E&M Services
A121: Clinic Visit_New Patient Level 1 | B121: 99201
A122: Clinic Visit_New Patient Level 2 | B122: 99202
A123: Clinic Visit_New Patient Level 3 | B123: 99203
A124: Clinic Visit_New Patient Level 4 | B124: 99204
A125: Clinic Visit_New Patient Level 5 | B125: 99205
A126: Clinic Visit_Est. Patient Level 1 | B126: 99211
A127: Clinic Visit_ Est. Patient Level 2 | B127: 99212
A128: Clinic Visit_ Est. Patient Level 3 | B128: 99213
A129: Clinic Visit_ Est. Patient Level 4 | B129: 99214
A130: Clinic Visit_ Est. Patient Level 5 | B130: 99215
A131: Venipuncture | B131: 36415
A132: Labs
A133: Comprehensive metabolic panel | B133: 80053 | C133: 60400965
A134: Albumin Serum | B134: 82040 | C134: 60401969
A135: Alk Phosphatase | B135: 84075 | C135: 60400164
A136: BUN | B136: 84520 | C136: 60403252
A137: Creatinine | B137: 82565 | C137: 60400911
A138: Calcium, Total | B138: 82310 | C138: 60400490
A139: Glucose Blood | B139: 82947 | C139: 60442014
A140: Total Protein | B140: 84155 | C140: 60340587
A141: AST (SGOT) | B141: 84450 | C141: 60403163
A142: ALT (SGPT) | B142: 84460 | C142: 60403198
A143: Bilirubin Total | B143: 82247 | C143: 60400407
A144: Sodium | B144: 84295 | C144: 60402892
A145: Potassium-serum | B145: 84132 | C145: 60402388
A146: Chloride | B146: 82435 | C146: 60400733
A147: Bicarbonate(CO2) | B147: 82374 | C147: 60434086
A148: Alpha -fetoprotein | B148: 82105
A149: Amplified Probe(MSRA) | B149: 87641 | C149: 60508137
A150: Basic Metabolic Panel | B150: 80047 | C150: 60400959
A151: Beta-Natriuretic Peptide (BNP) | B151: 83880 | C151: 60402938
A152: Bilirubin Direct | B152: 82248 | C152: 60400377
A153: Blood Culture | B153: 87040 | C153: 60503044
A154: CBC w/platelets no diff | B154: 85027 | C154: 60301360
A155: CBC diff, w/platelets, automated | B155: 85025 | C155: 60301395
A156: Hemoglobin | B156: 85018 | C156: 60307671
A157: Hematocrit | B157: 85014 | C157: 60307662
A158: Platelet Count | B158: 85049 | C158: 60300887
A159: Calcium Ionized | B159: 82330 | C159: 60402051
A160: CD4 count or T cell Absolute | B160: 86361 | C160: 60433879
A161: Cholesterol | B161: 82465 | C161: 60400768
A162: Complement AG EA Component | B162: 86160 | C162: 60442048
A163: CPK Total | B163: 82550 | C163: 60400881
A164: C-Reactive Protein | B164: 86140 | C164: 60409206
A165: C-Reactive Protein High Sens | B165: 86141 | C165: 60409207
A166: C-Peptide | B166: 84681 | C166: 60401528
A167: DAT (COOMBS Direct) | B167: 86880 | C167: 60101213
A168: DNA Antibody Double Strand | B168: 86225 | C168: 60601304
A169: Electrolyte Panel | B169: 80051 | C169: 60400963
A170: ESR (sedimentation rate) | B170: 85651 | C170: 60301303
A171: Estradiol | B171: 82670 | C171: 60401504
A172: F IX inhibitor and F IX C level | B172: 85250 | C172: 60307830
A173: Factor VIII Assay (Test code: 26-00140) | B173: 85240 | C173: 60302626
A174: Factor VIII Inhibitor Assay: Human (Test code: 26-00310) | B174: 85335 | C174: 60307830
A175: Factor VIII Inhibitor Assay: Porcine (Test code: 26-00320) | B175: 85335 | C175: 60307830
A176: Factor VIII Inhibitor Screen (Test code: 26-00290) | B176: 85335 | C176: 60307830
A177: Fibrin Split Product | B177: 82784 | C177: 60301727
A178: Fibrinogen Activity | B178: 85384 | C178: 60300461
A179: FSH-Follicle Stimulating Hormone | B179: 83001 | C179: 60401506
A180: Gammaglobulin IGA,IGD,IGG,IGM | B180: 82784 | C180: 60408084
A181: GGTP | B181: 82977 | C181: 60407908
A182: HbA1C/glycosylated hemoglobin | B182: 83036 | C182: 60402997
A183: HCG Qualitative Serum | B183: 84702 | C183: 60404127
A184: HCG Pregnancy Test Urine | B184: 84703 | C184: 60700435
A185: Hepatic Function Panel | B185: 80076 | C185: 60400968
A186: Hepatitis B Core Antibody (HBcAB) | B186: 86704 | C186: 60403096
A187: Hepatitis B surface antibody ( HBsAB) | B187: 86706 | C187: 60407341
A188: Hepatitis A Antibody ( HAAb) | B188: 86708
A189: Hepatitis C antibody | B189: 86803 | C189: 60403173
A190: HIV Antibody Confirmatory | B190: 86701 | C190: 60601320
A191: HTLV-1 | B191: 86687
A192: HTLV-II | B192: 86688
A193: HLA B 27 | B193: 86812 | C193: 60309579
A194: Inorganic Phosphorus | B194: 84100 | C194: 60402329
A195: Insulin Total | B195: 83525 | C195: 60401512
A196: LDH | B196: 83615 | C196: 60401810
A197: LDH Isoenzymes | B197: 83625 | C197: 60405654
A198: Lipid Panel | B198: 80061 | C198: 60408785
A199: Luteinizing Hormone | B199: 83002 | C199: 60401508
A200: Magnesium | B200: 83735 | C200: 60402116
A201: Nicotine | B201: 80302 | C201: 60401070
A202: Phosphorus Inorganic | B202: 84100 | C202: 60402329
A203: Protein C Functional | B203: 85303 | C203: 60307523
A204: Protein S Free | B204: 85306 | C204: 60307531
A205: Protein Total Urine | B205: 84155 | C205: 60400302
A206: Protime (PT) | B206: 85610 | C206: 60300941
A207: PTT | B207: 85730 | C207: 60300852
A208: Quantiferon | B208: 86480 | C208: 3481116
A209: Renal Function Panel | B209: 80069 | C209: 60400976
... 280 more rows

Sheet Effort
A1: =Summary!A9 -> Project Title: | C1: =Summary!B9 -> title
A2: =Summary!A10 -> Principal Investigator: | C2: =Summary!C10 -> PI
A3: =Summary!A11 -> Sponsor: | C3: =Summary!C11 -> Spon
A4: =Summary!A12 -> CPHS Study Number: | C4: =Summary!C12 -> IRB num
A6: Position | C6: Name | E6: Hourly Rate
A8: =Summary!A19 -> PI | C8: =IF(Summary!C19=0,"",Summary!C19) -> PI | E8: =((Summary!$E$19+ (Summary!$E$19*Summary!$J$19))/2080) -> 0 | F8: =((Summary!$E$19+ (Summary!$E$19*Summary!$J$19))/2080)*#REF! -> 
A9: =Summary!A20 -> PI Oversight | C9: =IF(Summary!C20=0,"",Summary!C20) -> PI | E9: =((Summary!$E$20+ (Summary!$E$20*Summary!$J$20))/2080) -> 0 | F9: =((Summary!$E$19+ (Summary!$E$19*Summary!$J$19))/2080)*#REF! -> 
A10: =Summary!A21 -> Coordinator | C10: =IF(Summary!C21=0,"",Summary!C21) -> NAME | E10: =((Summary!$E$21+ (Summary!$E$21*Summary!$J$21))/2080) -> 0 | F10: =((Summary!$E$19+ (Summary!$E$19*Summary!$J$19))/2080)*#REF! -> 
A11: =Summary!A22 -> Coordinator Admin | C11: =IF(Summary!C22=0,"",Summary!C22) -> NAME | E11: =((Summary!$E$22+ (Summary!$E$22*Summary!$J$22))/2080) -> 0 | F11: =((Summary!$E$19+ (Summary!$E$19*Summary!$J$19))/2080)*#REF! ->  | H11: Note-- Effort per person for each visit should include visit preparation and visit administration time and effort too.
A12: =Summary!A23 -> Financial Management | C12: =IF(Summary!C23=0,"",Summary!C23) ->  | E12: =((Summary!$E$23+ (Summary!$E$23*Summary!$J$23))/2080) -> 0 | F12: =((Summary!$E$19+ (Summary!$E$19*Summary!$J$19))/2080)*#REF! ->  | H12: Example- Chart set up, scheduling next visit, escorting participant for imaging, data entry into CRF, etc.
A13: =Summary!A24 -> 0 | C13: =IF(Summary!C24=0,"",Summary!C24) ->  | E13: =((Summary!$E$24+ (Summary!$E$24*Summary!$J$24))/2080) -> 0 | F13: =((Summary!$E$19+ (Summary!$E$19*Summary!$J$19))/2080)*#REF! -> 
A14: =Summary!A25 -> 0 | C14: =IF(Summary!C25=0,"",Summary!C25) ->  | E14: =((Summary!$E$25+ (Summary!$E$25*Summary!$J$25))/2080) -> 0 | F14: =((Summary!$E$19+ (Summary!$E$19*Summary!$J$19))/2080)*#REF! ->  | H14: Financial Management - Minimum .5 per visit for invoicing and/or payment reconciliation & 3 hours for last visit for study reconciliation. (In some cases this is also the study coordinator. However the time spent for financial management is separate from and in addition to the time and effort spent during study visits therefore needs to be captured separately.
A15: =Summary!A26 -> 0 | C15: =IF(Summary!C26=0,"",Summary!C26) ->  | E15: =((Summary!$E$26+ (Summary!$E$26*Summary!$J$26))/2080) -> 0 | F15: =((Summary!$E$19+ (Summary!$E$19*Summary!$J$19))/2080)*#REF! ->  | H15: Regulatory Management- Minimum .25 per visit and 3 hours for last study visit to capture continuing reviews, and amendment processing . (In many cases the study coordinator also manages regulatory. However the time spent managing regulatory documents (SAE, Reg Binder, IND report management, IRB submissions) is separate from and in addition to the time and effort spent during study visits therefore needs to be captured separately.
A16: =Summary!A27 -> 0 | C16: =IF(Summary!C27=0,"",Summary!C27) ->  | E16: =((Summary!$E$27+ (Summary!$E$27*Summary!$J$27))/2080) -> 0 | F16: =((Summary!$E$19+ (Summary!$E$19*Summary!$J$19))/2080)*#REF! -> 
A18: Position | C18: Name | AL18: Effort %
E19: ='Coverage Analysis'!F8 -> V1 | F19: ='Coverage Analysis'!G8 -> V2 | G19: ='Coverage Analysis'!H8 -> V3 | H19: ='Coverage Analysis'!I8 -> V4 | I19: ='Coverage Analysis'!J8 -> V5 | J19: ='Coverage Analysis'!K8 -> V6 | K19: ='Coverage Analysis'!L8 -> V7 | L19: ='Coverage Analysis'!M8 -> V8 | M19: ='Coverage Analysis'!N8 -> V9 | N19: ='Coverage Analysis'!O8 -> V10 | O19: ='Coverage Analysis'!P8 -> V11 | P19: ='Coverage Analysis'!Q8 -> V12 | Q19: ='Coverage Analysis'!R8 -> V13 | R19: ='Coverage Analysis'!S8 -> V14 | S19: ='Coverage Analysis'!T8 -> V15 | T19: ='Coverage Analysis'!U8 -> V16 | U19: ='Coverage Analysis'!V8 -> V17 | V19: ='Coverage Analysis'!W8 -> V18 | W19: ='Coverage Analysis'!X8 -> V19 | X19: ='Coverage Analysis'!Y8 -> V20 | Y19: ='Coverage Analysis'!Z8 -> V21 | Z19: ='Coverage Analysis'!AA8 -> V22 | AA19: ='Coverage Analysis'!AB8 -> V23 | AB19: ='Coverage Analysis'!AC8 -> V24 | AC19: ='Coverage Analysis'!AD8 -> V25 | AD19: ='Coverage Analysis'!AE8 -> V26 | AE19: ='Coverage Analysis'!AF8 -> V27 | AF19: ='Coverage Analysis'!AG8 -> V28 | AG19: ='Coverage Analysis'!AH8 -> V29 | AH19: ='Coverage Analysis'!AI8 -> V30 | AI19: ='Coverage Analysis'!AJ8 -> V31 | AJ19: ='Coverage Analysis'!AK8 -> V32 | AK19: ='Coverage Analysis'!AL8 -> V33
A20: =Summary!A19 -> PI | C20: =IF(Summary!C19=0,"",Summary!C19) -> PI | AL20: =SUM(E20:AK20) /2080 -> 0
A21: =Summary!A21 -> Coordinator | C21: =IF(Summary!C21=0,"",Summary!C21) -> NAME | AL21: 0
A22: =Summary!A22 -> Coordinator Admin | C22: =IF(Summary!C22=0,"",Summary!C22) -> NAME | AL22: 0
A23: =Summary!A23 -> Financial Management | C23: =IF(Summary!C23=0,"",Summary!C23) ->  | AL23: 0
A24: =Summary!A24 -> 0 | C24: =IF(Summary!C24=0,"",Summary!C24) ->  | AL24: =SUM(E24:AK24) /2080 -> 0
A25: =Summary!A25 -> 0 | C25: =IF(Summary!C25=0,"",Summary!C25) ->  | AL25: 0
A26: =Summary!A26 -> 0 | C26: =IF(Summary!C26=0,"",Summary!C26) ->  | AL26: 0
A27: =Summary!A27 -> 0 | C27: =IF(Summary!C27=0,"",Summary!C27) ->  | AL27: 0
A28: Total Number of Staff Hours: | E28: =SUM(E20:E27) -> 0 | F28: =SUM(F20:F27) -> 0 | G28: 0 | H28: 0 | I28: 0 | J28: 0 | K28: 0 | L28: 0 | M28: 0 | N28: 0 | O28: 0 | P28: 0 | Q28: 0 | R28: 0 | S28: 0 | T28: 0 | U28: 0 | V28: 0 | W28: 0 | X28: 0 | Y28: 0 | Z28: 0 | AA28: 0 | AB28: 0 | AC28: 0 | AD28: 0 | AE28: 0 | AF28: 0 | AG28: 0 | AH28: 0 | AI28: 0 | AJ28: 0 | AK28: 0
E31: *Review visits on the Coverage Analysis tab to assses time and effort for each visit per study team member
A34: =Effort!A18 -> Position | C34: =Effort!C18 -> Name
E35: ='Coverage Analysis'!F8 -> V1 | F35: ='Coverage Analysis'!G8 -> V2 | G35: ='Coverage Analysis'!H8 -> V3 | H35: ='Coverage Analysis'!I8 -> V4 | I35: ='Coverage Analysis'!J8 -> V5 | J35: ='Coverage Analysis'!K8 -> V6 | K35: ='Coverage Analysis'!L8 -> V7 | L35: ='Coverage Analysis'!M8 -> V8 | M35: ='Coverage Analysis'!N8 -> V9 | N35: ='Coverage Analysis'!O8 -> V10 | O35: ='Coverage Analysis'!P8 -> V11 | P35: ='Coverage Analysis'!Q8 -> V12 | Q35: ='Coverage Analysis'!R8 -> V13 | R35: ='Coverage Analysis'!S8 -> V14 | S35: ='Coverage Analysis'!T8 -> V15 | T35: ='Coverage Analysis'!U8 -> V16 | U35: ='Coverage Analysis'!V8 -> V17 | V35: ='Coverage Analysis'!W8 -> V18 | W35: ='Coverage Analysis'!X8 -> V19 | X35: ='Coverage Analysis'!Y8 -> V20 | Y35: ='Coverage Analysis'!Z8 -> V21 | Z35: ='Coverage Analysis'!AA8 -> V22 | AA35: ='Coverage Analysis'!AB8 -> V23 | AB35: ='Coverage Analysis'!AC8 -> V24 | AC35: ='Coverage Analysis'!AD8 -> V25 | AD35: ='Coverage Analysis'!AE8 -> V26 | AE35: ='Coverage Analysis'!AF8 -> V27 | AF35: ='Coverage Analysis'!AG8 -> V28 | AG35: ='Coverage Analysis'!AH8 -> V29 | AH35: ='Coverage Analysis'!AI8 -> V30 | AI35: ='Coverage Analysis'!AJ8 -> V31 | AJ35: ='Coverage Analysis'!AK8 -> V32 | AK35: ='Coverage Analysis'!AL8 -> V33
A36: =Effort!A20 -> PI | C36: =IF(Summary!C19=0,"",Summary!C19) -> PI | E36: =((Summary!$E$19+ (Summary!$E$19*Summary!$J$19))/2080)*E20 -> 0 | F36: =((Summary!$E$19+ (Summary!$E$19*Summary!$J$19))/2080)*F20 -> 0 | G36: =((Summary!$E$19+ (Summary!$E$19*Summary!$J$19))/2080)*G20 -> 0 | H36: =((Summary!$E$19+ (Summary!$E$19*Summary!$J$19))/2080)*H20 -> 0 | I36: =((Summary!$E$19+ (Summary!$E$19*Summary!$J$19))/2080)*I20 -> 0 | J36: =((Summary!$E$19+ (Summary!$E$19*Summary!$J$19))/2080)*J20 -> 0 | K36: =((Summary!$E$19+ (Summary!$E$19*Summary!$J$19))/2080)*K20 -> 0 | L36: =((Summary!$E$19+ (Summary!$E$19*Summary!$J$19))/2080)*L20 -> 0 | M36: =((Summary!$E$19+ (Summary!$E$19*Summary!$J$19))/2080)*M20 -> 0 | N36: =((Summary!$E$19+ (Summary!$E$19*Summary!$J$19))/2080)*N20 -> 0 | O36: =((Summary!$E$19+ (Summary!$E$19*Summary!$J$19))/2080)*O20 -> 0 | P36: =((Summary!$E$19+ (Summary!$E$19*Summary!$J$19))/2080)*P20 -> 0 | Q36: =((Summary!$E$19+ (Summary!$E$19*Summary!$J$19))/2080)*Q20 -> 0 | R36: =((Summary!$E$19+ (Summary!$E$19*Summary!$J$19))/2080)*R20 -> 0 | S36: =((Summary!$E$19+ (Summary!$E$19*Summary!$J$19))/2080)*S20 -> 0 | T36: =((Summary!$E$19+ (Summary!$E$19*Summary!$J$19))/2080)*T20 -> 0 | U36: =((Summary!$E$19+ (Summary!$E$19*Summary!$J$19))/2080)*U20 -> 0 | V36: =((Summary!$E$19+ (Summary!$E$19*Summary!$J$19))/2080)*V20 -> 0 | W36: =((Summary!$E$19+ (Summary!$E$19*Summary!$J$19))/2080)*W20 -> 0 | X36: =((Summary!$E$19+ (Summary!$E$19*Summary!$J$19))/2080)*X20 -> 0 | Y36: =((Summary!$E$19+ (Summary!$E$19*Summary!$J$19))/2080)*Y20 -> 0 | Z36: =((Summary!$E$19+ (Summary!$E$19*Summary!$J$19))/2080)*Z20 -> 0 | AA36: =((Summary!$E$19+ (Summary!$E$19*Summary!$J$19))/2080)*AA20 -> 0 | AB36: =((Summary!$E$19+ (Summary!$E$19*Summary!$J$19))/2080)*AB20 -> 0 | AC36: =((Summary!$E$19+ (Summary!$E$19*Summary!$J$19))/2080)*AC20 -> 0 | AD36: =((Summary!$E$19+ (Summary!$E$19*Summary!$J$19))/2080)*AD20 -> 0 | AE36: =((Summary!$E$19+ (Summary!$E$19*Summary!$J$19))/2080)*AE20 -> 0 | AF36: =((Summary!$E$19+ (Summary!$E$19*Summary!$J$19))/2080)*AF20 -> 0 | AG36: =((Summary!$E$19+ (Summary!$E$19*Summary!$J$19))/2080)*AG20 -> 0 | AH36: =((Summary!$E$19+ (Summary!$E$19*Summary!$J$19))/2080)*AH20 -> 0 | AI36: =((Summary!$E$19+ (Summary!$E$19*Summary!$J$19))/2080)*AI20 -> 0 | AJ36: =((Summary!$E$19+ (Summary!$E$19*Summary!$J$19))/2080)*AJ20 -> 0 | AK36: =((Summary!$E$19+ (Summary!$E$19*Summary!$J$19))/2080)*AK20 -> 0
A37: =Effort!A21 -> Coordinator | C37: =IF(Summary!C21=0,"",Summary!C21) -> NAME | E37: =((Summary!$E$21+ (Summary!$E$21*Summary!$J$21))/2080)*E21 -> 0 | F37: =((Summary!$E$21+ (Summary!$E$21*Summary!$J$21))/2080)*F21 -> 0 | G37: =((Summary!$E$21+ (Summary!$E$21*Summary!$J$21))/2080)*G21 -> 0 | H37: =((Summary!$E$21+ (Summary!$E$21*Summary!$J$21))/2080)*H21 -> 0 | I37: =((Summary!$E$21+ (Summary!$E$21*Summary!$J$21))/2080)*I21 -> 0 | J37: =((Summary!$E$21+ (Summary!$E$21*Summary!$J$21))/2080)*J21 -> 0 | K37: =((Summary!$E$21+ (Summary!$E$21*Summary!$J$21))/2080)*K21 -> 0 | L37: =((Summary!$E$21+ (Summary!$E$21*Summary!$J$21))/2080)*L21 -> 0 | M37: =((Summary!$E$21+ (Summary!$E$21*Summary!$J$21))/2080)*M21 -> 0 | N37: =((Summary!$E$21+ (Summary!$E$21*Summary!$J$21))/2080)*N21 -> 0 | O37: =((Summary!$E$21+ (Summary!$E$21*Summary!$J$21))/2080)*O21 -> 0 | P37: =((Summary!$E$21+ (Summary!$E$21*Summary!$J$21))/2080)*P21 -> 0 | Q37: =((Summary!$E$21+ (Summary!$E$21*Summary!$J$21))/2080)*Q21 -> 0 | R37: =((Summary!$E$21+ (Summary!$E$21*Summary!$J$21))/2080)*R21 -> 0 | S37: =((Summary!$E$21+ (Summary!$E$21*Summary!$J$21))/2080)*S21 -> 0 | T37: =((Summary!$E$21+ (Summary!$E$21*Summary!$J$21))/2080)*T21 -> 0 | U37: =((Summary!$E$21+ (Summary!$E$21*Summary!$J$21))/2080)*U21 -> 0 | V37: =((Summary!$E$21+ (Summary!$E$21*Summary!$J$21))/2080)*V21 -> 0 | W37: =((Summary!$E$21+ (Summary!$E$21*Summary!$J$21))/2080)*W21 -> 0 | X37: =((Summary!$E$21+ (Summary!$E$21*Summary!$J$21))/2080)*X21 -> 0 | Y37: =((Summary!$E$21+ (Summary!$E$21*Summary!$J$21))/2080)*Y21 -> 0 | Z37: =((Summary!$E$21+ (Summary!$E$21*Summary!$J$21))/2080)*Z21 -> 0 | AA37: =((Summary!$E$21+ (Summary!$E$21*Summary!$J$21))/2080)*AA21 -> 0 | AB37: =((Summary!$E$21+ (Summary!$E$21*Summary!$J$21))/2080)*AB21 -> 0 | AC37: =((Summary!$E$21+ (Summary!$E$21*Summary!$J$21))/2080)*AC21 -> 0 | AD37: =((Summary!$E$21+ (Summary!$E$21*Summary!$J$21))/2080)*AD21 -> 0 | AE37: =((Summary!$E$21+ (Summary!$E$21*Summary!$J$21))/2080)*AE21 -> 0 | AF37: =((Summary!$E$21+ (Summary!$E$21*Summary!$J$21))/2080)*AF21 -> 0 | AG37: =((Summary!$E$21+ (Summary!$E$21*Summary!$J$21))/2080)*AG21 -> 0 | AH37: =((Summary!$E$21+ (Summary!$E$21*Summary!$J$21))/2080)*AH21 -> 0 | AI37: =((Summary!$E$21+ (Summary!$E$21*Summary!$J$21))/2080)*AI21 -> 0 | AJ37: =((Summary!$E$21+ (Summary!$E$21*Summary!$J$21))/2080)*AJ21 -> 0 | AK37: =((Summary!$E$21+ (Summary!$E$21*Summary!$J$21))/2080)*AK21 -> 0
A38: =Effort!A22 -> Coordinator Admin | C38: =IF(Summary!C22=0,"",Summary!C22) -> NAME | E38: =((Summary!$E$22+ (Summary!$E$22*Summary!$J$22))/2080)*E22 -> 0 | F38: =((Summary!$E$22+ (Summary!$E$22*Summary!$J$22))/2080)*F22 -> 0 | G38: =((Summary!$E$22+ (Summary!$E$22*Summary!$J$22))/2080)*G22 -> 0 | H38: =((Summary!$E$22+ (Summary!$E$22*Summary!$J$22))/2080)*H22 -> 0 | I38: =((Summary!$E$22+ (Summary!$E$22*Summary!$J$22))/2080)*I22 -> 0 | J38: =((Summary!$E$22+ (Summary!$E$22*Summary!$J$22))/2080)*J22 -> 0 | K38: =((Summary!$E$22+ (Summary!$E$22*Summary!$J$22))/2080)*K22 -> 0 | L38: =((Summary!$E$22+ (Summary!$E$22*Summary!$J$22))/2080)*L22 -> 0 | M38: =((Summary!$E$22+ (Summary!$E$22*Summary!$J$22))/2080)*M22 -> 0 | N38: =((Summary!$E$22+ (Summary!$E$22*Summary!$J$22))/2080)*N22 -> 0 | O38: =((Summary!$E$22+ (Summary!$E$22*Summary!$J$22))/2080)*O22 -> 0 | P38: =((Summary!$E$22+ (Summary!$E$22*Summary!$J$22))/2080)*P22 -> 0 | Q38: =((Summary!$E$22+ (Summary!$E$22*Summary!$J$22))/2080)*Q22 -> 0 | R38: =((Summary!$E$22+ (Summary!$E$22*Summary!$J$22))/2080)*R22 -> 0 | S38: =((Summary!$E$22+ (Summary!$E$22*Summary!$J$22))/2080)*S22 -> 0 | T38: =((Summary!$E$22+ (Summary!$E$22*Summary!$J$22))/2080)*T22 -> 0 | U38: =((Summary!$E$22+ (Summary!$E$22*Summary!$J$22))/2080)*U22 -> 0 | V38: =((Summary!$E$22+ (Summary!$E$22*Summary!$J$22))/2080)*V22 -> 0 | W38: =((Summary!$E$22+ (Summary!$E$22*Summary!$J$22))/2080)*W22 -> 0 | X38: =((Summary!$E$22+ (Summary!$E$22*Summary!$J$22))/2080)*X22 -> 0 | Y38: =((Summary!$E$22+ (Summary!$E$22*Summary!$J$22))/2080)*Y22 -> 0 | Z38: =((Summary!$E$22+ (Summary!$E$22*Summary!$J$22))/2080)*Z22 -> 0 | AA38: =((Summary!$E$22+ (Summary!$E$22*Summary!$J$22))/2080)*AA22 -> 0 | AB38: =((Summary!$E$22+ (Summary!$E$22*Summary!$J$22))/2080)*AB22 -> 0 | AC38: =((Summary!$E$22+ (Summary!$E$22*Summary!$J$22))/2080)*AC22 -> 0 | AD38: =((Summary!$E$22+ (Summary!$E$22*Summary!$J$22))/2080)*AD22 -> 0 | AE38: =((Summary!$E$22+ (Summary!$E$22*Summary!$J$22))/2080)*AE22 -> 0 | AF38: =((Summary!$E$22+ (Summary!$E$22*Summary!$J$22))/2080)*AF22 -> 0 | AG38: =((Summary!$E$22+ (Summary!$E$22*Summary!$J$22))/2080)*AG22 -> 0 | AH38: =((Summary!$E$22+ (Summary!$E$22*Summary!$J$22))/2080)*AH22 -> 0 | AI38: =((Summary!$E$22+ (Summary!$E$22*Summary!$J$22))/2080)*AI22 -> 0 | AJ38: =((Summary!$E$22+ (Summary!$E$22*Summary!$J$22))/2080)*AJ22 -> 0 | AK38: =((Summary!$E$22+ (Summary!$E$22*Summary!$J$22))/2080)*AK22 -> 0
A39: =Effort!A23 -> Financial Management | C39: =IF(Summary!C23=0,"",Summary!C23) ->  | E39: =((Summary!$E$23+ (Summary!$E$23*Summary!$J$23))/2080)*E23 -> 0 | F39: =((Summary!$E$23+ (Summary!$E$23*Summary!$J$23))/2080)*F23 -> 0 | G39: =((Summary!$E$23+ (Summary!$E$23*Summary!$J$23))/2080)*G23 -> 0 | H39: =((Summary!$E$23+ (Summary!$E$23*Summary!$J$23))/2080)*H23 -> 0 | I39: =((Summary!$E$23+ (Summary!$E$23*Summary!$J$23))/2080)*I23 -> 0 | J39: =((Summary!$E$23+ (Summary!$E$23*Summary!$J$23))/2080)*J23 -> 0 | K39: =((Summary!$E$23+ (Summary!$E$23*Summary!$J$23))/2080)*K23 -> 0 | L39: =((Summary!$E$23+ (Summary!$E$23*Summary!$J$23))/2080)*L23 -> 0 | M39: =((Summary!$E$23+ (Summary!$E$23*Summary!$J$23))/2080)*M23 -> 0 | N39: =((Summary!$E$23+ (Summary!$E$23*Summary!$J$23))/2080)*N23 -> 0 | O39: =((Summary!$E$23+ (Summary!$E$23*Summary!$J$23))/2080)*O23 -> 0 | P39: =((Summary!$E$23+ (Summary!$E$23*Summary!$J$23))/2080)*P23 -> 0 | Q39: =((Summary!$E$23+ (Summary!$E$23*Summary!$J$23))/2080)*Q23 -> 0 | R39: =((Summary!$E$23+ (Summary!$E$23*Summary!$J$23))/2080)*R23 -> 0 | S39: =((Summary!$E$23+ (Summary!$E$23*Summary!$J$23))/2080)*S23 -> 0 | T39: =((Summary!$E$23+ (Summary!$E$23*Summary!$J$23))/2080)*T23 -> 0 | U39: =((Summary!$E$23+ (Summary!$E$23*Summary!$J$23))/2080)*U23 -> 0 | V39: =((Summary!$E$23+ (Summary!$E$23*Summary!$J$23))/2080)*V23 -> 0 | W39: =((Summary!$E$23+ (Summary!$E$23*Summary!$J$23))/2080)*W23 -> 0 | X39: =((Summary!$E$23+ (Summary!$E$23*Summary!$J$23))/2080)*X23 -> 0 | Y39: =((Summary!$E$23+ (Summary!$E$23*Summary!$J$23))/2080)*Y23 -> 0 | Z39: =((Summary!$E$23+ (Summary!$E$23*Summary!$J$23))/2080)*Z23 -> 0 | AA39: =((Summary!$E$23+ (Summary!$E$23*Summary!$J$23))/2080)*AA23 -> 0 | AB39: =((Summary!$E$23+ (Summary!$E$23*Summary!$J$23))/2080)*AB23 -> 0 | AC39: =((Summary!$E$23+ (Summary!$E$23*Summary!$J$23))/2080)*AC23 -> 0 | AD39: =((Summary!$E$23+ (Summary!$E$23*Summary!$J$23))/2080)*AD23 -> 0 | AE39: =((Summary!$E$23+ (Summary!$E$23*Summary!$J$23))/2080)*AE23 -> 0 | AF39: =((Summary!$E$23+ (Summary!$E$23*Summary!$J$23))/2080)*AF23 -> 0 | AG39: =((Summary!$E$23+ (Summary!$E$23*Summary!$J$23))/2080)*AG23 -> 0 | AH39: =((Summary!$E$23+ (Summary!$E$23*Summary!$J$23))/2080)*AH23 -> 0 | AI39: =((Summary!$E$23+ (Summary!$E$23*Summary!$J$23))/2080)*AI23 -> 0 | AJ39: =((Summary!$E$23+ (Summary!$E$23*Summary!$J$23))/2080)*AJ23 -> 0 | AK39: =((Summary!$E$23+ (Summary!$E$23*Summary!$J$23))/2080)*AK23 -> 0
A40: =Effort!A24 -> 0 | C40: =IF(Summary!C24=0,"",Summary!C24) ->  | E40: =((Summary!$E$23+ (Summary!$E$23*Summary!$J$23))/2080)*E24 -> 0 | F40: =((Summary!$E$23+ (Summary!$E$23*Summary!$J$23))/2080)*F24 -> 0 | G40: =((Summary!$E$23+ (Summary!$E$23*Summary!$J$23))/2080)*G24 -> 0 | H40: =((Summary!$E$23+ (Summary!$E$23*Summary!$J$23))/2080)*H24 -> 0 | I40: =((Summary!$E$23+ (Summary!$E$23*Summary!$J$23))/2080)*I24 -> 0 | J40: =((Summary!$E$23+ (Summary!$E$23*Summary!$J$23))/2080)*J24 -> 0 | K40: =((Summary!$E$23+ (Summary!$E$23*Summary!$J$23))/2080)*K24 -> 0 | L40: =((Summary!$E$23+ (Summary!$E$23*Summary!$J$23))/2080)*L24 -> 0 | M40: =((Summary!$E$23+ (Summary!$E$23*Summary!$J$23))/2080)*M24 -> 0 | N40: =((Summary!$E$23+ (Summary!$E$23*Summary!$J$23))/2080)*N24 -> 0 | O40: =((Summary!$E$23+ (Summary!$E$23*Summary!$J$23))/2080)*O24 -> 0 | P40: =((Summary!$E$23+ (Summary!$E$23*Summary!$J$23))/2080)*P24 -> 0 | Q40: =((Summary!$E$23+ (Summary!$E$23*Summary!$J$23))/2080)*Q24 -> 0 | R40: =((Summary!$E$23+ (Summary!$E$23*Summary!$J$23))/2080)*R24 -> 0 | S40: =((Summary!$E$23+ (Summary!$E$23*Summary!$J$23))/2080)*S24 -> 0 | T40: =((Summary!$E$23+ (Summary!$E$23*Summary!$J$23))/2080)*T24 -> 0 | U40: =((Summary!$E$23+ (Summary!$E$23*Summary!$J$23))/2080)*U24 -> 0 | V40: =((Summary!$E$23+ (Summary!$E$23*Summary!$J$23))/2080)*V24 -> 0 | W40: =((Summary!$E$23+ (Summary!$E$23*Summary!$J$23))/2080)*W24 -> 0 | X40: =((Summary!$E$23+ (Summary!$E$23*Summary!$J$23))/2080)*X24 -> 0 | Y40: =((Summary!$E$23+ (Summary!$E$23*Summary!$J$23))/2080)*Y24 -> 0 | Z40: =((Summary!$E$23+ (Summary!$E$23*Summary!$J$23))/2080)*Z24 -> 0 | AA40: =((Summary!$E$23+ (Summary!$E$23*Summary!$J$23))/2080)*AA24 -> 0 | AB40: =((Summary!$E$23+ (Summary!$E$23*Summary!$J$23))/2080)*AB24 -> 0 | AC40: =((Summary!$E$23+ (Summary!$E$23*Summary!$J$23))/2080)*AC24 -> 0 | AD40: =((Summary!$E$23+ (Summary!$E$23*Summary!$J$23))/2080)*AD24 -> 0 | AE40: =((Summary!$E$23+ (Summary!$E$23*Summary!$J$23))/2080)*AE24 -> 0 | AF40: =((Summary!$E$23+ (Summary!$E$23*Summary!$J$23))/2080)*AF24 -> 0 | AG40: =((Summary!$E$23+ (Summary!$E$23*Summary!$J$23))/2080)*AG24 -> 0 | AH40: =((Summary!$E$23+ (Summary!$E$23*Summary!$J$23))/2080)*AH24 -> 0 | AI40: =((Summary!$E$23+ (Summary!$E$23*Summary!$J$23))/2080)*AI24 -> 0 | AJ40: =((Summary!$E$23+ (Summary!$E$23*Summary!$J$23))/2080)*AJ24 -> 0 | AK40: =((Summary!$E$23+ (Summary!$E$23*Summary!$J$23))/2080)*AK24 -> 0
A41: =Effort!A25 -> 0 | C41: =IF(Summary!C25=0,"",Summary!C25) ->  | E41: =((Summary!$E$23+ (Summary!$E$23*Summary!$J$23))/2080)*E25 -> 0 | F41: =((Summary!$E$23+ (Summary!$E$23*Summary!$J$23))/2080)*F25 -> 0 | G41: =((Summary!$E$23+ (Summary!$E$23*Summary!$J$23))/2080)*G25 -> 0 | H41: =((Summary!$E$23+ (Summary!$E$23*Summary!$J$23))/2080)*H25 -> 0 | I41: =((Summary!$E$23+ (Summary!$E$23*Summary!$J$23))/2080)*I25 -> 0 | J41: =((Summary!$E$23+ (Summary!$E$23*Summary!$J$23))/2080)*J25 -> 0 | K41: =((Summary!$E$23+ (Summary!$E$23*Summary!$J$23))/2080)*K25 -> 0 | L41: =((Summary!$E$23+ (Summary!$E$23*Summary!$J$23))/2080)*L25 -> 0 | M41: =((Summary!$E$23+ (Summary!$E$23*Summary!$J$23))/2080)*M25 -> 0 | N41: =((Summary!$E$23+ (Summary!$E$23*Summary!$J$23))/2080)*N25 -> 0 | O41: =((Summary!$E$23+ (Summary!$E$23*Summary!$J$23))/2080)*O25 -> 0 | P41: =((Summary!$E$23+ (Summary!$E$23*Summary!$J$23))/2080)*P25 -> 0 | Q41: =((Summary!$E$23+ (Summary!$E$23*Summary!$J$23))/2080)*Q25 -> 0 | R41: =((Summary!$E$23+ (Summary!$E$23*Summary!$J$23))/2080)*R25 -> 0 | S41: =((Summary!$E$23+ (Summary!$E$23*Summary!$J$23))/2080)*S25 -> 0 | T41: =((Summary!$E$23+ (Summary!$E$23*Summary!$J$23))/2080)*T25 -> 0 | U41: =((Summary!$E$23+ (Summary!$E$23*Summary!$J$23))/2080)*U25 -> 0 | V41: =((Summary!$E$23+ (Summary!$E$23*Summary!$J$23))/2080)*V25 -> 0 | W41: =((Summary!$E$23+ (Summary!$E$23*Summary!$J$23))/2080)*W25 -> 0 | X41: =((Summary!$E$23+ (Summary!$E$23*Summary!$J$23))/2080)*X25 -> 0 | Y41: =((Summary!$E$23+ (Summary!$E$23*Summary!$J$23))/2080)*Y25 -> 0 | Z41: =((Summary!$E$23+ (Summary!$E$23*Summary!$J$23))/2080)*Z25 -> 0 | AA41: =((Summary!$E$23+ (Summary!$E$23*Summary!$J$23))/2080)*AA25 -> 0 | AB41: =((Summary!$E$23+ (Summary!$E$23*Summary!$J$23))/2080)*AB25 -> 0 | AC41: =((Summary!$E$23+ (Summary!$E$23*Summary!$J$23))/2080)*AC25 -> 0 | AD41: =((Summary!$E$23+ (Summary!$E$23*Summary!$J$23))/2080)*AD25 -> 0 | AE41: =((Summary!$E$23+ (Summary!$E$23*Summary!$J$23))/2080)*AE25 -> 0 | AF41: =((Summary!$E$23+ (Summary!$E$23*Summary!$J$23))/2080)*AF25 -> 0 | AG41: =((Summary!$E$23+ (Summary!$E$23*Summary!$J$23))/2080)*AG25 -> 0 | AH41: =((Summary!$E$23+ (Summary!$E$23*Summary!$J$23))/2080)*AH25 -> 0 | AI41: =((Summary!$E$23+ (Summary!$E$23*Summary!$J$23))/2080)*AI25 -> 0 | AJ41: =((Summary!$E$23+ (Summary!$E$23*Summary!$J$23))/2080)*AJ25 -> 0 | AK41: =((Summary!$E$23+ (Summary!$E$23*Summary!$J$23))/2080)*AK25 -> 0
A42: =Effort!A26 -> 0 | C42: =IF(Summary!C26=0,"",Summary!C26) ->  | E42: =((Summary!$E$23+ (Summary!$E$23*Summary!$J$23))/2080)*E26 -> 0 | F42: =((Summary!$E$23+ (Summary!$E$23*Summary!$J$23))/2080)*F26 -> 0 | G42: =((Summary!$E$23+ (Summary!$E$23*Summary!$J$23))/2080)*G26 -> 0 | H42: =((Summary!$E$23+ (Summary!$E$23*Summary!$J$23))/2080)*H26 -> 0 | I42: =((Summary!$E$23+ (Summary!$E$23*Summary!$J$23))/2080)*I26 -> 0 | J42: =((Summary!$E$23+ (Summary!$E$23*Summary!$J$23))/2080)*J26 -> 0 | K42: =((Summary!$E$23+ (Summary!$E$23*Summary!$J$23))/2080)*K26 -> 0 | L42: =((Summary!$E$23+ (Summary!$E$23*Summary!$J$23))/2080)*L26 -> 0 | M42: =((Summary!$E$23+ (Summary!$E$23*Summary!$J$23))/2080)*M26 -> 0 | N42: =((Summary!$E$23+ (Summary!$E$23*Summary!$J$23))/2080)*N26 -> 0 | O42: =((Summary!$E$23+ (Summary!$E$23*Summary!$J$23))/2080)*O26 -> 0 | P42: =((Summary!$E$23+ (Summary!$E$23*Summary!$J$23))/2080)*P26 -> 0 | Q42: =((Summary!$E$23+ (Summary!$E$23*Summary!$J$23))/2080)*Q26 -> 0 | R42: =((Summary!$E$23+ (Summary!$E$23*Summary!$J$23))/2080)*R26 -> 0 | S42: =((Summary!$E$23+ (Summary!$E$23*Summary!$J$23))/2080)*S26 -> 0 | T42: =((Summary!$E$23+ (Summary!$E$23*Summary!$J$23))/2080)*T26 -> 0 | U42: =((Summary!$E$23+ (Summary!$E$23*Summary!$J$23))/2080)*U26 -> 0 | V42: =((Summary!$E$23+ (Summary!$E$23*Summary!$J$23))/2080)*V26 -> 0 | W42: =((Summary!$E$23+ (Summary!$E$23*Summary!$J$23))/2080)*W26 -> 0 | X42: =((Summary!$E$23+ (Summary!$E$23*Summary!$J$23))/2080)*X26 -> 0 | Y42: =((Summary!$E$23+ (Summary!$E$23*Summary!$J$23))/2080)*Y26 -> 0 | Z42: =((Summary!$E$23+ (Summary!$E$23*Summary!$J$23))/2080)*Z26 -> 0 | AA42: =((Summary!$E$23+ (Summary!$E$23*Summary!$J$23))/2080)*AA26 -> 0 | AB42: =((Summary!$E$23+ (Summary!$E$23*Summary!$J$23))/2080)*AB26 -> 0 | AC42: =((Summary!$E$23+ (Summary!$E$23*Summary!$J$23))/2080)*AC26 -> 0 | AD42: =((Summary!$E$23+ (Summary!$E$23*Summary!$J$23))/2080)*AD26 -> 0 | AE42: =((Summary!$E$23+ (Summary!$E$23*Summary!$J$23))/2080)*AE26 -> 0 | AF42: =((Summary!$E$23+ (Summary!$E$23*Summary!$J$23))/2080)*AF26 -> 0 | AG42: =((Summary!$E$23+ (Summary!$E$23*Summary!$J$23))/2080)*AG26 -> 0 | AH42: =((Summary!$E$23+ (Summary!$E$23*Summary!$J$23))/2080)*AH26 -> 0 | AI42: =((Summary!$E$23+ (Summary!$E$23*Summary!$J$23))/2080)*AI26 -> 0 | AJ42: =((Summary!$E$23+ (Summary!$E$23*Summary!$J$23))/2080)*AJ26 -> 0 | AK42: =((Summary!$E$23+ (Summary!$E$23*Summary!$J$23))/2080)*AK26 -> 0
A43: =Effort!A27 -> 0 | C43: =IF(Summary!C27=0,"",Summary!C27) ->  | E43: =((Summary!$E$23+ (Summary!$E$23*Summary!$J$23))/2080)*E27 -> 0 | F43: =((Summary!$E$23+ (Summary!$E$23*Summary!$J$23))/2080)*F27 -> 0 | G43: =((Summary!$E$23+ (Summary!$E$23*Summary!$J$23))/2080)*G27 -> 0 | H43: =((Summary!$E$23+ (Summary!$E$23*Summary!$J$23))/2080)*H27 -> 0 | I43: =((Summary!$E$23+ (Summary!$E$23*Summary!$J$23))/2080)*I27 -> 0 | J43: =((Summary!$E$23+ (Summary!$E$23*Summary!$J$23))/2080)*J27 -> 0 | K43: =((Summary!$E$23+ (Summary!$E$23*Summary!$J$23))/2080)*K27 -> 0 | L43: =((Summary!$E$23+ (Summary!$E$23*Summary!$J$23))/2080)*L27 -> 0 | M43: =((Summary!$E$23+ (Summary!$E$23*Summary!$J$23))/2080)*M27 -> 0 | N43: =((Summary!$E$23+ (Summary!$E$23*Summary!$J$23))/2080)*N27 -> 0 | O43: =((Summary!$E$23+ (Summary!$E$23*Summary!$J$23))/2080)*O27 -> 0 | P43: =((Summary!$E$23+ (Summary!$E$23*Summary!$J$23))/2080)*P27 -> 0 | Q43: =((Summary!$E$23+ (Summary!$E$23*Summary!$J$23))/2080)*Q27 -> 0 | R43: =((Summary!$E$23+ (Summary!$E$23*Summary!$J$23))/2080)*R27 -> 0 | S43: =((Summary!$E$23+ (Summary!$E$23*Summary!$J$23))/2080)*S27 -> 0 | T43: =((Summary!$E$23+ (Summary!$E$23*Summary!$J$23))/2080)*T27 -> 0 | U43: =((Summary!$E$23+ (Summary!$E$23*Summary!$J$23))/2080)*U27 -> 0 | V43: =((Summary!$E$23+ (Summary!$E$23*Summary!$J$23))/2080)*V27 -> 0 | W43: =((Summary!$E$23+ (Summary!$E$23*Summary!$J$23))/2080)*W27 -> 0 | X43: =((Summary!$E$23+ (Summary!$E$23*Summary!$J$23))/2080)*X27 -> 0 | Y43: =((Summary!$E$23+ (Summary!$E$23*Summary!$J$23))/2080)*Y27 -> 0 | Z43: =((Summary!$E$23+ (Summary!$E$23*Summary!$J$23))/2080)*Z27 -> 0 | AA43: =((Summary!$E$23+ (Summary!$E$23*Summary!$J$23))/2080)*AA27 -> 0 | AB43: =((Summary!$E$23+ (Summary!$E$23*Summary!$J$23))/2080)*AB27 -> 0 | AC43: =((Summary!$E$23+ (Summary!$E$23*Summary!$J$23))/2080)*AC27 -> 0 | AD43: =((Summary!$E$23+ (Summary!$E$23*Summary!$J$23))/2080)*AD27 -> 0 | AE43: =((Summary!$E$23+ (Summary!$E$23*Summary!$J$23))/2080)*AE27 -> 0 | AF43: =((Summary!$E$23+ (Summary!$E$23*Summary!$J$23))/2080)*AF27 -> 0 | AG43: =((Summary!$E$23+ (Summary!$E$23*Summary!$J$23))/2080)*AG27 -> 0 | AH43: =((Summary!$E$23+ (Summary!$E$23*Summary!$J$23))/2080)*AH27 -> 0 | AI43: =((Summary!$E$23+ (Summary!$E$23*Summary!$J$23))/2080)*AI27 -> 0 | AJ43: =((Summary!$E$23+ (Summary!$E$23*Summary!$J$23))/2080)*AJ27 -> 0 | AK43: =((Summary!$E$23+ (Summary!$E$23*Summary!$J$23))/2080)*AK27 -> 0
A44: Total Effort Cost per Visit | E44: =SUM(E36:E43) -> 0 | F44: =SUM(F36:F43) -> 0 | G44: 0 | H44: 0 | I44: 0 | J44: 0 | K44: 0 | L44: =SUM(L36:L43) -> 0 | M44: 0 | N44: 0 | O44: 0 | P44: 0 | Q44: 0 | R44: 0 | S44: 0 | T44: 0 | U44: 0 | V44: 0 | W44: 0 | X44: 0 | Y44: 0 | Z44: =SUM(Z36:Z43) -> 0 | AA44: 0 | AB44: 0 | AC44: 0 | AD44: 0 | AE44: 0 | AF44: 0 | AG44: 0 | AH44: 0 | AI44: 0 | AJ44: 0 | AK44: =SUM(AK36:AK43) -> 0
A45: Total Effort Cost per Visit plus IDC | E45: =E44*1.3 -> 0 | F45: =F44*1.3 -> 0 | G45: 0 | H45: 0 | I45: 0 | J45: 0 | K45: 0 | L45: =L44*1.3 -> 0 | M45: 0 | N45: 0 | O45: 0 | P45: 0 | Q45: 0 | R45: 0 | S45: 0 | T45: 0 | U45: 0 | V45: 0 | W45: 0 | X45: 0 | Y45: 0 | Z45: =Z44*1.3 -> 0 | AA45: 0 | AB45: 0 | AC45: 0 | AD45: 0 | AE45: 0 | AF45: 0 | AG45: 0 | AH45: 0 | AI45: 0 | AJ45: 0 | AK45: =AK44*1.3 -> 0
A55: Start up time and effort
F56: Below two items are not start-up effort (Will be reflected in Summary Tab Effort)
A58: Position | B58: Name | W58: Effort %
F59: Chart Review/Prescreen (Time per patient elegibility review) | G59: Screen Failure Visit (Time per Patient visit) | H59: Protocol Review | I59: Feasibility Assessment | J59: Internal logistics /operational preparation | K59: Complete Regulatory Documents | L59: Coverage Analysis | M59: Budget and Contract Negotiations | N59: Prepare Source Documents and Study Files | O59: Submission of paperwork to IRB (Includes ICF preparation) | P59: Protocol specific training and Protocol in-service with study team and collaborators if applicable | Q59: CRF system training | R59: Investigator meeting | S59: Site Initiation Visit (include Site Feasibility Visit if applicable) | T59: CRU coordination and Communication | U59: MHH Protocol Submission (Submission, submission follow up communications ) | V59: Study drug Coordination (Coordination and communication with MHH IDS or communication and coordination for departmental storage.)
A60: =Summary!A19 -> PI | B60: =IF(Summary!C19=0,"", Summary!C19) -> PI | H60: 3 | W60: =SUM(H60:V60)/2080+($F60*Summary!D13)/2080+(Effort!G60*Summary!D14)/2080 -> 0.001442307692
A61: =Summary!A21 -> Coordinator | B61: =IF(ISBLANK(Summary!C21), "", Summary!C21) -> NAME | H61: 3 | W61: =SUM(H61:V61)/2080+($F61*Summary!D13)/2080+(Effort!G61*Summary!D14)/2080 -> 0.001442307692
A62: =Summary!A22 -> Coordinator Admin | B62: =IF(ISBLANK(Summary!C22), "", Summary!C22) -> NAME | W62: =SUM(H62:V62)/2080+($F62*Summary!D13)/2080+(Effort!G62*Summary!D14)/2080 -> 0
A63: =Summary!A23 -> Financial Management | B63: =IF(ISBLANK(Summary!C23), "", Summary!C23) ->  | W63: =SUM(H63:V63)/2080+($F63*Summary!D13)/2080+(Effort!G63*Summary!D14)/2080 -> 0
A64: =Summary!A24 -> 0 | B64: =IF(ISBLANK(Summary!C24), "", Summary!C24) ->  | W64: =SUM(H64:V64)/2080+($F64*Summary!D13)/2080+(Effort!G64*Summary!D14)/2080 -> 0
A65: =Summary!A25 -> 0 | B65: =IF(ISBLANK(Summary!C25), "", Summary!C25) ->  | W65: =SUM(H65:V65)/2080+($F65*Summary!D13)/2080+(Effort!G65*Summary!D14)/2080 -> 0
A66: =Summary!A26 -> 0 | B66: =IF(ISBLANK(Summary!C26), "", Summary!C26) ->  | W66: =SUM(H66:V66)/2080+($F66*Summary!D13)/2080+(Effort!G66*Summary!D14)/2080 -> 0
A67: =Summary!A27 -> 0 | B67: =IF(ISBLANK(Summary!C27), "", Summary!C27) ->  | W67: =SUM(H67:V67)/2080+($F67*Summary!$D13)/2080+(Effort!G67*Summary!$D14)/2080 -> 0
A68: Total Number of Staff Hours: | F68: =SUM(F60:F67) -> 0 | G68: 0 | H68: 6 | I68: 0 | J68: 0 | K68: 0 | L68: 0 | M68: 0 | N68: 0 | O68: 0 | P68: 0 | Q68: 0 | R68: 0 | S68: 0 | T68: 0 | U68: 0 | V68: 0
A74: Position | B74: Name
F75: PRESCREEN | G75: Screening / Chart Reviews | H75: Protocol Review | I75: Feasibility Assessment | J75: Internal logistics /operational preparation | K75: Complete Regulatory Documents | L75: Coverage Analysis | M75: Budget Negotiations | N75: Coordination of SPA Contract review and financial account set up | O75: Submission of paperwork to IRB (Includes ICF preparation) | P75: Protocol specific training and Protocol in-service with study team and collaborators if applicable | Q75: CRF system training | R75: Investigator meeting | S75: Site Initiation Visit (include Site Feasibility Visit if applicable) | T75: CRU coordination and Communication | U75: MHH Protocol Submission (Submission, submission follow up communications ) | V75: Study drug Coordination (Coordination and communication with MHH IDS or communication and coordination for departmental storage.) | W75: TOTALS
A76: =Summary!A19 -> PI | B76: =B60 -> PI | F76: =((Summary!$E$19+ (Summary!$E$19*Summary!$J$19))/2080)*F60 -> 0 | G76: =((Summary!$E$19+ (Summary!$E$19*Summary!$J$19))/2080)*G60 -> 0 | H76: =((Summary!$E$19+ (Summary!$E$19*Summary!$J$19))/2080)*H60 -> 0 | I76: =((Summary!$E$19+ (Summary!$E$19*Summary!$J$19))/2080)*I60 -> 0 | J76: =((Summary!$E$19+ (Summary!$E$19*Summary!$J$19))/2080)*J60 -> 0 | K76: =((Summary!$E$19+ (Summary!$E$19*Summary!$J$19))/2080)*K60 -> 0 | L76: =((Summary!$E$19+ (Summary!$E$19*Summary!$J$19))/2080)*L60 -> 0 | M76: =((Summary!$E$19+ (Summary!$E$19*Summary!$J$19))/2080)*M60 -> 0 | N76: =((Summary!$E$19+ (Summary!$E$19*Summary!$J$19))/2080)*N60 -> 0 | O76: =((Summary!$E$19+ (Summary!$E$19*Summary!$J$19))/2080)*O60 -> 0 | P76: =((Summary!$E$19+ (Summary!$E$19*Summary!$J$19))/2080)*P60 -> 0 | Q76: =((Summary!$E$19+ (Summary!$E$19*Summary!$J$19))/2080)*Q60 -> 0 | R76: =((Summary!$E$19+ (Summary!$E$19*Summary!$J$19))/2080)*R60 -> 0 | S76: =((Summary!$E$19+ (Summary!$E$19*Summary!$J$19))/2080)*S60 -> 0 | T76: =((Summary!$E$19+ (Summary!$E$19*Summary!$J$19))/2080)*T60 -> 0 | U76: =((Summary!$E$19+ (Summary!$E$19*Summary!$J$19))/2080)*U60 -> 0 | V76: =((Summary!$E$19+ (Summary!$E$19*Summary!$J$19))/2080)*V60 -> 0 | W76: =SUM(H76:V76) -> 0
A77: =Summary!A21 -> Coordinator | B77: NAME | F77: =((Summary!$E$21+ (Summary!$E$21*Summary!$J$21))/2080)*F61 -> 0 | G77: =((Summary!$E$21+ (Summary!$E$21*Summary!$J$21))/2080)*G61 -> 0 | H77: =((Summary!$E$21+ (Summary!$E$21*Summary!$J$21))/2080)*H61 -> 0 | I77: =((Summary!$E$21+ (Summary!$E$21*Summary!$J$21))/2080)*I61 -> 0 | J77: =((Summary!$E$21+ (Summary!$E$21*Summary!$J$21))/2080)*J61 -> 0 | K77: =((Summary!$E$21+ (Summary!$E$21*Summary!$J$21))/2080)*K61 -> 0 | L77: =((Summary!$E$21+ (Summary!$E$21*Summary!$J$21))/2080)*L61 -> 0 | M77: =((Summary!$E$21+ (Summary!$E$21*Summary!$J$21))/2080)*M61 -> 0 | N77: =((Summary!$E$21+ (Summary!$E$21*Summary!$J$21))/2080)*N61 -> 0 | O77: =((Summary!$E$21+ (Summary!$E$21*Summary!$J$21))/2080)*O61 -> 0 | P77: =((Summary!$E$21+ (Summary!$E$21*Summary!$J$21))/2080)*P61 -> 0 | Q77: =((Summary!$E$21+ (Summary!$E$21*Summary!$J$21))/2080)*Q61 -> 0 | R77: =((Summary!$E$21+ (Summary!$E$21*Summary!$J$21))/2080)*R61 -> 0 | S77: =((Summary!$E$21+ (Summary!$E$21*Summary!$J$21))/2080)*S61 -> 0 | T77: =((Summary!$E$21+ (Summary!$E$21*Summary!$J$21))/2080)*T61 -> 0 | U77: =((Summary!$E$21+ (Summary!$E$21*Summary!$J$21))/2080)*U61 -> 0 | V77: =((Summary!$E$21+ (Summary!$E$21*Summary!$J$21))/2080)*V61 -> 0 | W77: 0
A78: =Summary!A22 -> Coordinator Admin | B78: NAME | F78: =((Summary!$E$22+ (Summary!$E$22*Summary!$J$22))/2080)*F62 -> 0 | G78: =((Summary!$E$22+ (Summary!$E$22*Summary!$J$22))/2080)*G62 -> 0 | H78: =((Summary!$E$22+ (Summary!$E$22*Summary!$J$22))/2080)*H62 -> 0 | I78: =((Summary!$E$21+ (Summary!$E$21*Summary!$J$21))/2080)*I62 -> 0 | J78: =((Summary!$E$21+ (Summary!$E$21*Summary!$J$21))/2080)*J62 -> 0 | K78: =((Summary!$E$21+ (Summary!$E$21*Summary!$J$21))/2080)*K62 -> 0 | L78: =((Summary!$E$21+ (Summary!$E$21*Summary!$J$21))/2080)*L62 -> 0 | M78: =((Summary!$E$21+ (Summary!$E$21*Summary!$J$21))/2080)*M62 -> 0 | N78: =((Summary!$E$21+ (Summary!$E$21*Summary!$J$21))/2080)*N62 -> 0 | O78: =((Summary!$E$21+ (Summary!$E$21*Summary!$J$21))/2080)*O62 -> 0 | P78: =((Summary!$E$21+ (Summary!$E$21*Summary!$J$21))/2080)*P62 -> 0 | Q78: =((Summary!$E$21+ (Summary!$E$21*Summary!$J$21))/2080)*Q62 -> 0 | R78: =((Summary!$E$21+ (Summary!$E$21*Summary!$J$21))/2080)*R62 -> 0 | S78: =((Summary!$E$21+ (Summary!$E$21*Summary!$J$21))/2080)*S62 -> 0 | T78: =((Summary!$E$21+ (Summary!$E$21*Summary!$J$21))/2080)*T62 -> 0 | U78: =((Summary!$E$21+ (Summary!$E$21*Summary!$J$21))/2080)*U62 -> 0 | V78: =((Summary!$E$21+ (Summary!$E$21*Summary!$J$21))/2080)*V62 -> 0 | W78: 0
A79: =Summary!A23 -> Financial Management | F79: =((Summary!$E$23+ (Summary!$E$23*Summary!$J$23))/2080)*F63 -> 0 | G79: =((Summary!$E$23+ (Summary!$E$23*Summary!$J$23))/2080)*G63 -> 0 | H79: =((Summary!$E$23+ (Summary!$E$23*Summary!$J$23))/2080)*H63 -> 0 | I79: =((Summary!$E$23+ (Summary!$E$23*Summary!$J$23))/2080)*I63 -> 0 | J79: =((Summary!$E$23+ (Summary!$E$23*Summary!$J$23))/2080)*J63 -> 0 | K79: =((Summary!$E$23+ (Summary!$E$23*Summary!$J$23))/2080)*K63 -> 0 | L79: =((Summary!$E$23+ (Summary!$E$23*Summary!$J$23))/2080)*L63 -> 0 | M79: =((Summary!$E$23+ (Summary!$E$23*Summary!$J$23))/2080)*M63 -> 0 | N79: =((Summary!$E$23+ (Summary!$E$23*Summary!$J$23))/2080)*N63 -> 0 | O79: =((Summary!$E$23+ (Summary!$E$23*Summary!$J$23))/2080)*O63 -> 0 | P79: =((Summary!$E$23+ (Summary!$E$23*Summary!$J$23))/2080)*P63 -> 0 | Q79: =((Summary!$E$23+ (Summary!$E$23*Summary!$J$23))/2080)*Q63 -> 0 | R79: =((Summary!$E$23+ (Summary!$E$23*Summary!$J$23))/2080)*R63 -> 0 | S79: =((Summary!$E$23+ (Summary!$E$23*Summary!$J$23))/2080)*S63 -> 0 | T79: =((Summary!$E$23+ (Summary!$E$23*Summary!$J$23))/2080)*T63 -> 0 | U79: =((Summary!$E$23+ (Summary!$E$23*Summary!$J$23))/2080)*U63 -> 0 | V79: =((Summary!$E$23+ (Summary!$E$23*Summary!$J$23))/2080)*V63 -> 0 | W79: 0
A80: =Summary!A24 -> 0 | F80: =((Summary!$E$24+ (Summary!$E$24*Summary!$J$24))/2080)*F64 -> 0 | G80: =((Summary!$E$24+ (Summary!$E$24*Summary!$J$24))/2080)*G64 -> 0 | H80: =((Summary!$E$24+ (Summary!$E$24*Summary!$J$24))/2080)*H64 -> 0 | I80: =((Summary!$E$24+ (Summary!$E$24*Summary!$J$24))/2080)*I64 -> 0 | J80: =((Summary!$E$24+ (Summary!$E$24*Summary!$J$24))/2080)*J64 -> 0 | K80: =((Summary!$E$24+ (Summary!$E$24*Summary!$J$24))/2080)*K64 -> 0 | L80: =((Summary!$E$24+ (Summary!$E$24*Summary!$J$24))/2080)*L64 -> 0 | M80: =((Summary!$E$24+ (Summary!$E$24*Summary!$J$24))/2080)*M64 -> 0 | N80: =((Summary!$E$24+ (Summary!$E$24*Summary!$J$24))/2080)*N64 -> 0 | O80: =((Summary!$E$24+ (Summary!$E$24*Summary!$J$24))/2080)*O64 -> 0 | P80: =((Summary!$E$24+ (Summary!$E$24*Summary!$J$24))/2080)*P64 -> 0 | Q80: =((Summary!$E$24+ (Summary!$E$24*Summary!$J$24))/2080)*Q64 -> 0 | R80: =((Summary!$E$24+ (Summary!$E$24*Summary!$J$24))/2080)*R64 -> 0 | S80: =((Summary!$E$24+ (Summary!$E$24*Summary!$J$24))/2080)*S64 -> 0 | T80: =((Summary!$E$24+ (Summary!$E$24*Summary!$J$24))/2080)*T64 -> 0 | U80: =((Summary!$E$24+ (Summary!$E$24*Summary!$J$24))/2080)*U64 -> 0 | V80: =((Summary!$E$24+ (Summary!$E$24*Summary!$J$24))/2080)*V64 -> 0 | W80: 0
A81: =Summary!A25 -> 0 | F81: =((Summary!$E$25+ (Summary!$E$25*Summary!$J$25))/2080)*F66 -> 0 | G81: =((Summary!$E$25+ (Summary!$E$25*Summary!$J$25))/2080)*G66 -> 0 | H81: =((Summary!$E$25+ (Summary!$E$25*Summary!$J$25))/2080)*H66 -> 0 | I81: =((Summary!$E$25+ (Summary!$E$25*Summary!$J$25))/2080)*I66 -> 0 | J81: =((Summary!$E$25+ (Summary!$E$25*Summary!$J$25))/2080)*J66 -> 0 | K81: =((Summary!$E$25+ (Summary!$E$25*Summary!$J$25))/2080)*K66 -> 0 | L81: =((Summary!$E$25+ (Summary!$E$25*Summary!$J$25))/2080)*L66 -> 0 | M81: =((Summary!$E$25+ (Summary!$E$25*Summary!$J$25))/2080)*M66 -> 0 | N81: =((Summary!$E$25+ (Summary!$E$25*Summary!$J$25))/2080)*N66 -> 0 | O81: =((Summary!$E$25+ (Summary!$E$25*Summary!$J$25))/2080)*O66 -> 0 | P81: =((Summary!$E$25+ (Summary!$E$25*Summary!$J$25))/2080)*P66 -> 0 | Q81: =((Summary!$E$25+ (Summary!$E$25*Summary!$J$25))/2080)*Q66 -> 0 | R81: =((Summary!$E$25+ (Summary!$E$25*Summary!$J$25))/2080)*R66 -> 0 | S81: =((Summary!$E$25+ (Summary!$E$25*Summary!$J$25))/2080)*S66 -> 0 | T81: =((Summary!$E$25+ (Summary!$E$25*Summary!$J$25))/2080)*T66 -> 0 | U81: =((Summary!$E$25+ (Summary!$E$25*Summary!$J$25))/2080)*U66 -> 0 | V81: =((Summary!$E$25+ (Summary!$E$25*Summary!$J$25))/2080)*V65 -> 0 | W81: 0
A82: =Summary!A26 -> 0 | F82: =((Summary!$E$26+ (Summary!$E$26*Summary!$J$26))/2080)*F66 -> 0 | G82: =((Summary!$E$26+ (Summary!$E$26*Summary!$J$26))/2080)*G66 -> 0 | H82: =((Summary!$E$26+ (Summary!$E$26*Summary!$J$26))/2080)*H66 -> 0 | I82: =((Summary!$E$26+ (Summary!$E$26*Summary!$J$26))/2080)*I66 -> 0 | J82: =((Summary!$E$26+ (Summary!$E$26*Summary!$J$26))/2080)*J66 -> 0 | K82: =((Summary!$E$26+ (Summary!$E$26*Summary!$J$26))/2080)*K66 -> 0 | L82: =((Summary!$E$26+ (Summary!$E$26*Summary!$J$26))/2080)*L66 -> 0 | M82: =((Summary!$E$26+ (Summary!$E$26*Summary!$J$26))/2080)*M66 -> 0 | N82: =((Summary!$E$26+ (Summary!$E$26*Summary!$J$26))/2080)*N66 -> 0 | O82: =((Summary!$E$26+ (Summary!$E$26*Summary!$J$26))/2080)*O66 -> 0 | P82: =((Summary!$E$26+ (Summary!$E$26*Summary!$J$26))/2080)*P66 -> 0 | Q82: =((Summary!$E$26+ (Summary!$E$26*Summary!$J$26))/2080)*Q66 -> 0 | R82: =((Summary!$E$26+ (Summary!$E$26*Summary!$J$26))/2080)*R66 -> 0 | S82: =((Summary!$E$26+ (Summary!$E$26*Summary!$J$26))/2080)*S66 -> 0 | T82: =((Summary!$E$26+ (Summary!$E$26*Summary!$J$26))/2080)*T66 -> 0 | U82: =((Summary!$E$26+ (Summary!$E$26*Summary!$J$26))/2080)*U66 -> 0 | V82: =((Summary!$E$26+ (Summary!$E$26*Summary!$J$26))/2080)*V66 -> 0 | W82: 0
A83: =Summary!A27 -> 0 | F83: =((Summary!$E$27+ (Summary!$E$27*Summary!$J$27))/2080)*F67 -> 0 | G83: =((Summary!$E$27+ (Summary!$E$27*Summary!$J$27))/2080)*G67 -> 0 | H83: =((Summary!$E$27+ (Summary!$E$27*Summary!$J$27))/2080)*H67 -> 0 | I83: =((Summary!$E$27+ (Summary!$E$27*Summary!$J$27))/2080)*I67 -> 0 | J83: =((Summary!$E$27+ (Summary!$E$27*Summary!$J$27))/2080)*J67 -> 0 | K83: =((Summary!$E$27+ (Summary!$E$27*Summary!$J$27))/2080)*K67 -> 0 | L83: =((Summary!$E$27+ (Summary!$E$27*Summary!$J$27))/2080)*L67 -> 0 | M83: =((Summary!$E$27+ (Summary!$E$27*Summary!$J$27))/2080)*M67 -> 0 | N83: =((Summary!$E$27+ (Summary!$E$27*Summary!$J$27))/2080)*N67 -> 0 | O83: =((Summary!$E$27+ (Summary!$E$27*Summary!$J$27))/2080)*O67 -> 0 | P83: =((Summary!$E$27+ (Summary!$E$27*Summary!$J$27))/2080)*P67 -> 0 | Q83: =((Summary!$E$27+ (Summary!$E$27*Summary!$J$27))/2080)*Q67 -> 0 | R83: =((Summary!$E$27+ (Summary!$E$27*Summary!$J$27))/2080)*R67 -> 0 | S83: =((Summary!$E$27+ (Summary!$E$27*Summary!$J$27))/2080)*S67 -> 0 | T83: =((Summary!$E$27+ (Summary!$E$27*Summary!$J$27))/2080)*T67 -> 0 | U83: =((Summary!$E$27+ (Summary!$E$27*Summary!$J$27))/2080)*U67 -> 0 | V83: =((Summary!$E$27+ (Summary!$E$27*Summary!$J$27))/2080)*V67 -> 0 | W83: 0
A84: Total Effort Study Start up | F84: =SUM(F76:F83) -> 0 | G84: 0 | H84: 0 | I84: 0 | J84: 0 | K84: 0 | L84: 0 | M84: 0 | N84: 0 | O84: 0 | P84: 0 | Q84: 0 | R84: 0 | S84: 0 | T84: 0 | U84: 0 | V84: 0 | W84: 0 | X84: Total
A85: Total Effort Cost Study Start up plus IDC | F85: =F84*(1+Summary!I15) -> 0 | G85: =G84*(1+Summary!I15) -> 0 | H85: =H84*(1+Summary!I15) -> 0 | I85: =I84*(1+Summary!I15) -> 0 | J85: =J84*(1+Summary!I15) -> 0 | K85: =K84*(1+Summary!I15) -> 0 | L85: =L84*(1+Summary!I15) -> 0 | M85: =M84*(1+Summary!I15) -> 0 | N85: =N84*(1+Summary!I15) -> 0 | O85: =O84*(1+Summary!I15) -> 0 | P85: =P84*(1+Summary!I15) -> 0 | Q85: =Q84*(1+Summary!I15) -> 0 | R85: =R84*(1+Summary!I15) -> 0 | S85: =S84*(1+Summary!I15) -> 0 | T85: =T84*(1+Summary!I15) -> 0 | U85: =U84*(1+Summary!I15) -> 0 | V85: =V84*(1+Summary!I15) -> 0 | W85: 0 | X85: Total with IDC

Sheet Visit Cost
A2: =Summary!A10 -> Principal Investigator: | C2: =Summary!C10 -> PI
A3: =Summary!A11 -> Sponsor: | C3: =Summary!C11 -> Spon
A4: =Summary!A12 -> CPHS Study Number: | C4: =Summary!C12 -> IRB num
A5: =Summary!A13 -> Pre-screen (Est # of Charts) | C5: =Summary!D13 -> 1
B11: Clinical Cost
B12: Procedures/Activities | C12: ='Coverage Analysis'!F8 -> V1 | D12: ='Coverage Analysis'!G8 -> V2 | E12: ='Coverage Analysis'!H8 -> V3 | F12: ='Coverage Analysis'!I8 -> V4 | G12: ='Coverage Analysis'!J8 -> V5 | H12: ='Coverage Analysis'!K8 -> V6 | I12: ='Coverage Analysis'!L8 -> V7 | J12: ='Coverage Analysis'!M8 -> V8 | K12: ='Coverage Analysis'!N8 -> V9 | L12: ='Coverage Analysis'!O8 -> V10 | M12: ='Coverage Analysis'!P8 -> V11 | N12: ='Coverage Analysis'!Q8 -> V12 | O12: ='Coverage Analysis'!R8 -> V13 | P12: ='Coverage Analysis'!S8 -> V14 | Q12: ='Coverage Analysis'!T8 -> V15 | R12: ='Coverage Analysis'!U8 -> V16 | S12: ='Coverage Analysis'!V8 -> V17 | T12: ='Coverage Analysis'!W8 -> V18 | U12: ='Coverage Analysis'!X8 -> V19 | V12: ='Coverage Analysis'!Y8 -> V20 | W12: ='Coverage Analysis'!Z8 -> V21 | X12: ='Coverage Analysis'!AA8 -> V22 | Y12: ='Coverage Analysis'!AB8 -> V23 | Z12: ='Coverage Analysis'!AC8 -> V24 | AA12: ='Coverage Analysis'!AD8 -> V25 | AB12: ='Coverage Analysis'!AE8 -> V26 | AC12: ='Coverage Analysis'!AF8 -> V27 | AD12: ='Coverage Analysis'!AG8 -> V28 | AE12: ='Coverage Analysis'!AH8 -> V29 | AF12: ='Coverage Analysis'!AI8 -> V30 | AG12: ='Coverage Analysis'!AJ8 -> V31 | AH12: ='Coverage Analysis'!AK8 -> V32 | AI12: ='Coverage Analysis'!AL8 -> V33
B13: =IF(ISBLANK('Coverage Analysis'!B9),"",'Coverage Analysis'!B9) -> 
B14: =IF(ISBLANK('Coverage Analysis'!B10),"",'Coverage Analysis'!B10) -> 
B15: =IF(ISBLANK('Coverage Analysis'!B11),"",'Coverage Analysis'!B11) -> 
B16: =IF(ISBLANK('Coverage Analysis'!B12),"",'Coverage Analysis'!B12) -> 
B17: =IF(ISBLANK('Coverage Analysis'!B13),"",'Coverage Analysis'!B13) -> 
B18: =IF(ISBLANK('Coverage Analysis'!B14),"",'Coverage Analysis'!B14) -> 
B19: =IF(ISBLANK('Coverage Analysis'!B15),"",'Coverage Analysis'!B15) -> 
B20: =IF(ISBLANK('Coverage Analysis'!B16),"",'Coverage Analysis'!B16) -> 
B21: =IF(ISBLANK('Coverage Analysis'!B17),"",'Coverage Analysis'!B17) -> 
B22: =IF(ISBLANK('Coverage Analysis'!B18),"",'Coverage Analysis'!B18) -> 
B23: =IF(ISBLANK('Coverage Analysis'!B19),"",'Coverage Analysis'!B19) -> 
B24: =IF(ISBLANK('Coverage Analysis'!B20),"",'Coverage Analysis'!B20) ->  | C24: SOC | D24: SOC | E24: SOC | F24: SOC | G24: SOC | H24: SOC | I24: SOC
B25: =IF(ISBLANK('Coverage Analysis'!B21),"",'Coverage Analysis'!B21) ->  | C25: SOC | D25: SOC | E25: SOC | F25: SOC | G25: SOC | H25: SOC | I25: SOC
B26: =IF(ISBLANK('Coverage Analysis'!B22),"",'Coverage Analysis'!B22) -> 
B27: =IF(ISBLANK('Coverage Analysis'!B23),"",'Coverage Analysis'!B23) -> 
B28: =IF(ISBLANK('Coverage Analysis'!B24),"",'Coverage Analysis'!B24) -> 
B29: =IF(ISBLANK('Coverage Analysis'!B25),"",'Coverage Analysis'!B25) -> 
B30: =IF(ISBLANK('Coverage Analysis'!B26),"",'Coverage Analysis'!B26) -> 
B31: =IF(ISBLANK('Coverage Analysis'!B27),"",'Coverage Analysis'!B27) -> 
B32: =IF(ISBLANK('Coverage Analysis'!B28),"",'Coverage Analysis'!B28) -> 
B33: =IF(ISBLANK('Coverage Analysis'!B29),"",'Coverage Analysis'!B29) -> 
B34: =IF(ISBLANK('Coverage Analysis'!B30),"",'Coverage Analysis'!B30) -> 
B35: =IF(ISBLANK('Coverage Analysis'!B31),"",'Coverage Analysis'!B31) -> 
B36: =IF(ISBLANK('Coverage Analysis'!B32),"",'Coverage Analysis'!B32) -> 
B37: =IF(ISBLANK('Coverage Analysis'!B33),"",'Coverage Analysis'!B33) -> 
B38: =IF(ISBLANK('Coverage Analysis'!B34),"",'Coverage Analysis'!B34) -> 
B39: =IF(ISBLANK('Coverage Analysis'!B35),"",'Coverage Analysis'!B35) -> 
B40: =IF(ISBLANK('Coverage Analysis'!B36),"",'Coverage Analysis'!B36) -> 
B41: =IF(ISBLANK('Coverage Analysis'!B37),"",'Coverage Analysis'!B37) -> 
B42: =IF(ISBLANK('Coverage Analysis'!B38),"",'Coverage Analysis'!B38) -> 
B43: =IF(ISBLANK('Coverage Analysis'!B39),"",'Coverage Analysis'!B39) -> 
B44: =IF(ISBLANK('Coverage Analysis'!B40),"",'Coverage Analysis'!B40) -> 
B45: =IF(ISBLANK('Coverage Analysis'!B41),"",'Coverage Analysis'!B41) -> 
B46: =IF(ISBLANK('Coverage Analysis'!B42),"",'Coverage Analysis'!B42) -> 
B47: =IF(ISBLANK('Coverage Analysis'!B43),"",'Coverage Analysis'!B43) -> 
B48: =IF(ISBLANK('Coverage Analysis'!B44),"",'Coverage Analysis'!B44) -> 
B49: =IF(ISBLANK('Coverage Analysis'!B45),"",'Coverage Analysis'!B45) -> 
B50: =IF(ISBLANK('Coverage Analysis'!B46),"",'Coverage Analysis'!B46) -> 
B51: =IF(ISBLANK('Coverage Analysis'!B47),"",'Coverage Analysis'!B47) -> 
B52: =IF(ISBLANK('Coverage Analysis'!B48),"",'Coverage Analysis'!B48) -> 
B53: =IF(ISBLANK('Coverage Analysis'!B49),"",'Coverage Analysis'!B49) -> 
B54: =IF(ISBLANK('Coverage Analysis'!B50),"",'Coverage Analysis'!B50) -> 
B55: =IF(ISBLANK('Coverage Analysis'!B51),"",'Coverage Analysis'!B51) -> 
B56: =IF(ISBLANK('Coverage Analysis'!B52),"",'Coverage Analysis'!B52) -> 
B57: =IF(ISBLANK('Coverage Analysis'!B53),"",'Coverage Analysis'!B53) -> 
B58: =IF(ISBLANK('Coverage Analysis'!B54),"",'Coverage Analysis'!B54) -> 
B59: =IF(ISBLANK('Coverage Analysis'!B55),"",'Coverage Analysis'!B55) -> 
B60: =IF(ISBLANK('Coverage Analysis'!B56),"",'Coverage Analysis'!B56) -> 
B61: =IF(ISBLANK('Coverage Analysis'!B57),"",'Coverage Analysis'!B57) -> 
B62: =IF(ISBLANK('Coverage Analysis'!B58),"",'Coverage Analysis'!B58) -> 
B63: =IF(ISBLANK('Coverage Analysis'!B59),"",'Coverage Analysis'!B59) -> 
B64: =IF(ISBLANK('Coverage Analysis'!B60),"",'Coverage Analysis'!B60) -> 
B65: =IF(ISBLANK('Coverage Analysis'!B61),"",'Coverage Analysis'!B61) -> 
B66: =IF(ISBLANK('Coverage Analysis'!B62),"",'Coverage Analysis'!B62) -> 
B67: =IF(ISBLANK('Coverage Analysis'!B63),"",'Coverage Analysis'!B63) -> 
B68: =IF(ISBLANK('Coverage Analysis'!B64),"",'Coverage Analysis'!B64) -> 
B69: =IF(ISBLANK('Coverage Analysis'!B65),"",'Coverage Analysis'!B65) -> 
B70: =IF(ISBLANK('Coverage Analysis'!B66),"",'Coverage Analysis'!B66) -> 
B71: NOT LISTED IN PROTOCOL SCHEDULE
B73: =IF(ISBLANK('Coverage Analysis'!B69),,'Coverage Analysis'!B69) -> CRF Data Entry
B74: =IF(ISBLANK('Coverage Analysis'!B70),"",'Coverage Analysis'!B70) -> Chart set up
B75: =IF(ISBLANK('Coverage Analysis'!B71),"",'Coverage Analysis'!B71) -> Schedule next visit
B76: =IF(ISBLANK('Coverage Analysis'!B72),"",'Coverage Analysis'!B72) -> Describe Study drug
B77: Subtotal | C77: =SUBTOTAL(9,C13:C76) -> 0 | D77: =SUBTOTAL(9,D13:D76) -> 0 | E77: 0 | F77: 0 | G77: 0 | H77: 0 | I77: 0 | J77: =SUBTOTAL(9,J13:J76) -> 0 | K77: 0 | L77: 0 | M77: 0 | N77: 0 | O77: 0 | P77: 0 | Q77: 0 | R77: 0 | S77: 0 | T77: 0 | U77: 0 | V77: 0 | W77: 0 | X77: 0 | Y77: 0 | Z77: 0 | AA77: 0 | AB77: 0 | AC77: 0 | AD77: 0 | AE77: 0 | AF77: =SUBTOTAL(9,AF13:AF76) -> 0 | AG77: 0 | AH77: 0 | AI77: =SUBTOTAL(9,AI13:AI76) -> 0
B78: IDC | C78: =C77*(Summary!$I$15) -> 0 | D78: =D77*(Summary!$I$15) -> 0 | E78: =E77*(Summary!$I$15) -> 0 | F78: =F77*(Summary!$I$15) -> 0 | G78: =G77*(Summary!$I$15) -> 0 | H78: =H77*(Summary!$I$15) -> 0 | I78: =I77*(Summary!$I$15) -> 0 | J78: =J77*(Summary!$I$15) -> 0 | K78: =K77*(Summary!$I$15) -> 0 | L78: =L77*(Summary!$I$15) -> 0 | M78: =M77*(Summary!$I$15) -> 0 | N78: =N77*(Summary!$I$15) -> 0 | O78: =O77*(Summary!$I$15) -> 0 | P78: =P77*(Summary!$I$15) -> 0 | Q78: =Q77*(Summary!$I$15) -> 0 | R78: =R77*(Summary!$I$15) -> 0 | S78: =S77*(Summary!$I$15) -> 0 | T78: =T77*(Summary!$I$15) -> 0 | U78: =U77*(Summary!$I$15) -> 0 | V78: =V77*(Summary!$I$15) -> 0 | W78: =W77*(Summary!$I$15) -> 0 | X78: =X77*(Summary!$I$15) -> 0 | Y78: =Y77*(Summary!$I$15) -> 0 | Z78: =Z77*(Summary!$I$15) -> 0 | AA78: =AA77*(Summary!$I$15) -> 0 | AB78: =AB77*(Summary!$I$15) -> 0 | AC78: =AC77*(Summary!$I$15) -> 0 | AD78: =AD77*(Summary!$I$15) -> 0 | AE78: =AE77*(Summary!$I$15) -> 0 | AF78: =AF77*(Summary!$I$15) -> 0 | AG78: =AG77*(Summary!$I$15) -> 0 | AH78: =AH77*(Summary!$I$15) -> 0 | AI78: =AI77*(Summary!$I$15) -> 0
B79: Grand Total | C79: =C77+C78 -> 0 | D79: =D77+D78 -> 0 | E79: 0 | F79: 0 | G79: 0 | H79: 0 | I79: 0 | J79: =J77+J78 -> 0 | K79: 0 | L79: 0 | M79: 0 | N79: 0 | O79: 0 | P79: 0 | Q79: 0 | R79: 0 | S79: 0 | T79: 0 | U79: 0 | V79: 0 | W79: 0 | X79: 0 | Y79: 0 | Z79: 0 | AA79: 0 | AB79: 0 | AC79: 0 | AD79: 0 | AE79: 0 | AF79: =AF77+AF78 -> 0 | AG79: 0 | AH79: 0 | AI79: 0
E81: *Enter the costs for the items highlighed green above
C83: All clinical services and procedures performed for research purposes will be charged to the Finanical account set up for this study.
C84: Most often a discounted rate for services and procedures performed for research purposes is provided. Communicate with apprpopriate billing staff to identify the exact dollar amount that will be charged.

Sheet Fees-Invoiceables
A1: =Summary!A9 -> Project Title: | C1: =Summary!B9 -> title
A2: =Summary!A10 -> Principal Investigator: | C2: =Summary!C10 -> PI
A3: =Summary!A12 -> CPHS Study Number: | C3: =Summary!C12 -> IRB num
A5: Start Up Costs | D5: Total | E5: Total W IDC
A6: Start Up Effort | D6: =IF(Effort!W84=0,"",Effort!W84) ->  | E6: =IF(Effort!W85=0,"",Effort!W85) -> 
A7: IRB Review Fee - Local or Permission to Rely | D7: 2000 | E7: =IF(D7=0, "",D7*1.3) -> 2600 | J7: Coverage Analysis Fees - for Industry and Departmentally Sponsored studies (inclusive of IDC)
A8: Coverage Analysis Fee | D8: =E8/1.3 ->  | E8: =IF(Summary!K6='Fees-Invoiceables'!J8,'Fees-Invoiceables'!K8,IF(Summary!K6='Fees-Invoiceables'!J9,'Fees-Invoiceables'!K9,IF(Summary!K6='Fees-Invoiceables'!J10,'Fees-Invoiceables'!K10,""))) ->  | J8: Low | K8: 2069
A9: Investigational Pharmacy Setup Fee (Delete if N/A) | J9: Medium | K9: 3448
A10: MHH Adminsitrative Start up Fee (Delete if N/A) | E10: =IF(D10=0, "",D10*1.3) ->  | J10: High | K10: 4285
A11: Radiology Dept Setup Fee (Delete if N/A) | J11: Complex | K11: 4820
A12: CRU Start up Fee (Delete if N/A)
A13: Lab set up Fee (Delete if N/A)
J14: Effective 01/01/24 IRB fee is $2600 (inclusive of IDC) regardless of whether or not the study is requesting full board review or requesting permission to rely on outside IRB
A18: Total Start up Cost | D18: =SUM(D6:D17) ->  | E18: =SUM(E7:E17) -> 2600
D19: =SUM(D7:D17) ->  | E19: =SUM(E7:E17) -> 2600
A20: Invoiceable Procedures | B20: Unit cost | C20: Quantity | D20: Total | E20: Total W IDC
D21: =B21*C21 -> 0 | E21: =D21*1.3 -> 0
D22: =B22*C22 -> 0 | E22: =D22*1.3 -> 0
D23: =B23*C23 -> 0 | E23: =D23*1.3 -> 0
D24: 0 | E24: 0
D25: 0 | E25: 0
D26: 0 | E26: 0
D27: 0 | E27: 0
C28: 1 | D28: 0 | E28: 0
D29: 0 | E29: 0
D30: 0 | E30: 0
D31: 0 | E31: 0
D32: 0 | E32: 0
D33: 0 | E33: 0
D34: 0 | E34: 0
D35: 0 | E35: 0
D36: 0 | E36: 0
D37: 0 | E37: 0
D38: 0 | E38: 0
D39: 0 | E39: 0
D40: 0 | E40: 0
D41: 0 | E41: 0
D42: 0 | E42: 0
D43: 0 | E43: 0
A44: Total Invoiceable Costs | D44: =SUM(D21:D43) -> 0 | E44: =SUM(E21:E43) -> 0

Sheet QQBR
A2: Project Title: | B2: =Summary!B9 -> title
A3: Principal Investigator: | C3: =Summary!C10 -> PI | G3: Department: | I3: =Summary!I10 -> SPA
A4: Sponsor/CRO: | C4: =Summary!C11 -> Spon | G4: Project Period: | I4: =Summary!I11 -> CRO
A5: CPHS Study Number: | C5: =Summary!C12 -> IRB num | G5: Coordinator: | I5: =Summary!I12 -> NAME
A6: ClinicalTrials.gov # / NCT #: | D6: =Summary!D13 -> 1 | G6: IDE #: | I6: =Summary!I13 -> IDE num
A7: Coverage Analysis Version Date: | D7: ='Coverage Analysis'!AM6 -> 2026-08-19T10:45:01
A9: Device Studies
A10: What type of device is being studied?
A12: Is the investigational product provided for free by sponsor?
A13: If IDE, has the device “packet” been sent to CMS for approval?
A14: Has it been approved by CMS for billing?
A15: Has the MHH device checklist been completed? | N15: A DEEMED study is one that meets one of the following criteria: 1. Trials funded by NIH, CDC, AHRQ, CMS, DOD or VA. 2. Trials supported by centers or cooperative groups that are funded by the NIH, CDC, AHRQ, CMS, DOD or VA. 3. Trials conducted under an investigational new drug application (IND) reviewed by the FDA. 4. Drug trials that are exempt from having an IND under 21 CFR 312.2(b)(1).
A17: Drug/Biologic/Behavioral Studies
A18: Is the investigational product provided for free by sponsor?
A20: Conditions for Qualifying Clinical Trial
A21: The subject or purpose of the trial is the evaluation of an item or service that falls within a Medicare benefit category (e.g., physicians' service, durable medical equipment, or diagnostic test) and is not statutorily excluded from coverage (e.g., cosmetic surgery, hearing aids).
A22: The trial has therapeutic intent (i.e., the trial is not designed exclusively to test toxicity or disease path physiology).
A23: For a trial of a therapeutic intervention, the trial must enroll patients with diagnosed disease rather than healthy volunteers.
A24: The trial is considered to be a DEEMED study.
A25: Please submit the completed form along with the completed Coverage Analysis to crf@uth.edu.
A27: Federal Requirements (As Applicable to Medicare and Other Third Party Payers):
A28: 1) The billing provider must include in the beneficiary's medical record the following information: trial name, sponsor, and sponsor-assigned protocol number. This information does not need to be submitted with the claim but must be provided if requested for medical review.
A29: 2) The billing provider must report a National Clinical Trial (NCT) number on claims for items and services provided in clinical trials that are qualified for coverage. Services that are dictated in the clinical trial protocol, including routine care for the condition in the clinical trial, must be submitted with an NCT identifier number on a Medicare claim related to the clinical trial. Only items dictated in the research protocol are required to have the NCT identifier.
A30: 3) The clinical trial number is assigned by the National Library of Medicine website (http://clincialtrials.gov) when a new study is registered in the NLM Clinical Trials Database.
A31: 4) Claims also should include the following identifiers when being submitted to Medicare: a) Condition Code 30 (qualified clinical trial) b) ICD-10 code z00.6 (clinical research participant) as a secondary diagnosis c) Modifier Q0 (investigational item) or Q1 (routine services)
A33: UTHealth Clinical Research Billing Policy
A34: 1) It is the responsibility of the PI to ensure that the clinical research billing of his or her studies is in compliance with all laws and regulations and adhere to university policy. The PI, his or her research staff, department administrators, and the CRF Team must work together to ensure the components of accurate billing are in place. Please refer to the Coverage Analysis Procedure and the Clinical Research Billing Procedure.
A35: 2) The PI and study staff must prepare and submit a coverage analysis
A36: 3) The coverage analysis should be consistent with the study protocol and informed consent and should accurately and appropriately allocate the costs associated with the performance of the clinical study to the responsible payer.
A37: 4) The study budget should reflect all charges listed in the coverage analysis as sponsored paid research.
A38: 5) The PI and study staff must ensure that there is an outlined plan to identify research patients prior to providing services.
A39: 6) The PI and study staff must ensure that the services for study subjects enrolled in the clinical research project are billed in accordance with the coverage analysis and that the bills are based on actual services rendered and consistent with the informed consent.
A40: 7) After services are provided, study staff must coordinate with the appropriate personnel to ensure that proper billing information is provided.
A41: 8) Each department and clinic must follow clinical research billing procedures specific to its unit or practice in order to ensure that clinical research billing is conducted appropriately and accurately.
A42: 9) Study staff must conduct periodic reconciliation of clinical research billing charges.
A44: CERTIFICATION:
A45: I certify that I have read and understand the UTHealth Clinical Research Billing Policy and will comply with all applicable laws and UTHealth rules and policies governing clinical research billing. I certify to the best of my ability that the coverage analysis dated above is correct.
